Department Family,Entity,Date Paid,Expense Type,Expense Area,Supplier,Transaction Number,Amount (�),Supplier VAT Registration Number
BEIS,Met Office,05/04/2024,06 ACCOMMODATION,CHIEF FINANCIAL OFFICER,Aberdeenshire Council,490717,3486,6637545408
BEIS,Met Office,05/04/2024,06 ACCOMMODATION,CHIEF FINANCIAL OFFICER,Aberdeenshire Council,490718,3486,6637545408
BEIS,Met Office,05/04/2024,06 ACCOMMODATION,CHIEF FINANCIAL OFFICER,Aberdeenshire Council,490719,4980,6637545408
BEIS,Met Office,05/04/2024,06 ACCOMMODATION,CHIEF FINANCIAL OFFICER,ABOVE THE REST COMMERCIAL CLEANING LTD,490658,41,166969348
BEIS,Met Office,05/04/2024,06 ACCOMMODATION,CHIEF FINANCIAL OFFICER,ABOVE THE REST COMMERCIAL CLEANING LTD,490657,565,166969348
BEIS,Met Office,17/04/2024,11 SERVICES,CHIEF FINANCIAL OFFICER,ALLSTAR BUSINESS SOLUTIONS LTD,491393,2407.59,747880191
BEIS,Met Office,04/04/2024,11 SERVICES,CHIEF FINANCIAL OFFICER,ALLSTAR BUSINESS SOLUTIONS LTD,490753,2780.06,747880191
BEIS,Met Office,15/04/2024,11 SERVICES,CHIEF FINANCIAL OFFICER,ANVIL MOBILE LIMITED,491238,82.6,981686175
BEIS,Met Office,17/04/2024,03 STAFF COSTS T&S,CHIEF FINANCIAL OFFICER,APPLE CENTRAL TAXIS,491431,1090.8,449238720
BEIS,Met Office,24/04/2024,13 MISCELLANEOUS,CHIEF FINANCIAL OFFICER,ARTHUR J. GALLAGHER INSURANCE BROKERS LIMITED,491703,-2130.84,GB484746209
BEIS,Met Office,25/04/2024,13 MISCELLANEOUS,CHIEF FINANCIAL OFFICER,ARTHUR J. GALLAGHER INSURANCE BROKERS LIMITED,491666,679.24,GB484746209
BEIS,Met Office,24/04/2024,13 MISCELLANEOUS,CHIEF FINANCIAL OFFICER,ARTHUR J. GALLAGHER INSURANCE BROKERS LIMITED,491665,12880,GB484746209
BEIS,Met Office,24/04/2024,13 MISCELLANEOUS,CHIEF FINANCIAL OFFICER,ARTHUR J. GALLAGHER INSURANCE BROKERS LIMITED,491667,58212,GB484746209
BEIS,Met Office,11/04/2024,11 SERVICES,CHIEF FINANCIAL OFFICER,Ashfords Llp,490697,20,844502439
BEIS,Met Office,24/04/2024,11 SERVICES,CHIEF FINANCIAL OFFICER,Ashfords Llp,491656,896,844502439
BEIS,Met Office,09/04/2024,13 MISCELLANEOUS,CHIEF FINANCIAL OFFICER,BANNER GROUP LIMITED,491054,8.8,GB391085740
BEIS,Met Office,10/04/2024,06 ACCOMMODATION,CHIEF FINANCIAL OFFICER,Bedford Borough Council,490730,14845.25,-
BEIS,Met Office,05/04/2024,06 ACCOMMODATION,CHIEF FINANCIAL OFFICER,Belfast International Airport Ltd,490776,296.25,617777601
BEIS,Met Office,10/04/2024,06 ACCOMMODATION,CHIEF FINANCIAL OFFICER,Belfast International Airport Ltd,490699,6112.71,617777601
BEIS,Met Office,11/04/2024,06 ACCOMMODATION,CHIEF FINANCIAL OFFICER,Belfast International Airport Ltd,490660,24633.75,617777601
BEIS,Met Office,05/04/2024,06 ACCOMMODATION,CHIEF FINANCIAL OFFICER,BIDVEST NOONAN UK LTD,490821,11.49,GB847176988
BEIS,Met Office,05/04/2024,06 ACCOMMODATION,CHIEF FINANCIAL OFFICER,BIDVEST NOONAN UK LTD,490821,198.22,GB847176988
BEIS,Met Office,11/04/2024,06 ACCOMMODATION,CHIEF FINANCIAL OFFICER,Biffa Waste Services Ltd,491230,-356.99,537911627
BEIS,Met Office,17/04/2024,06 ACCOMMODATION,CHIEF FINANCIAL OFFICER,Biffa Waste Services Ltd,491329,75,537911627
BEIS,Met Office,11/04/2024,06 ACCOMMODATION,CHIEF FINANCIAL OFFICER,Biffa Waste Services Ltd,464112,356.99,537911627
BEIS,Met Office,04/04/2024,11 SERVICES,CHIEF FINANCIAL OFFICER,BITPOD LIMITED,490632,999.99,124 9359 03
BEIS,Met Office,17/04/2024,11 SERVICES,CHIEF FINANCIAL OFFICER,British Red Cross Society,491167,837,706926227
BEIS,Met Office,05/04/2024,06 ACCOMMODATION,CHIEF FINANCIAL OFFICER,BROWN & CO,490655,500,610538078
BEIS,Met Office,05/04/2024,06 ACCOMMODATION,CHIEF FINANCIAL OFFICER,BROXTOWE BOROUGH COUNCIL,490725,295.1,118033013
BEIS,Met Office,18/04/2024,11 SERVICES,CHIEF FINANCIAL OFFICER,BT GLOBAL SERVICES,491497,514.06,245719348
BEIS,Met Office,19/04/2024,11 SERVICES,CHIEF FINANCIAL OFFICER,BT GLOBAL SERVICES,491442,5778.86,245719348
BEIS,Met Office,19/04/2024,11 SERVICES,CHIEF FINANCIAL OFFICER,BT plc,490716,6726.34,245719348
BEIS,Met Office,05/04/2024,06 ACCOMMODATION,CHIEF FINANCIAL OFFICER,BUSINESS STREAM,490795,263.85,945850885
BEIS,Met Office,05/04/2024,06 ACCOMMODATION,CHIEF FINANCIAL OFFICER,BUSINESS SUPPORT CENTRE LTD,490701,7.35,927365208
BEIS,Met Office,30/04/2024,06 ACCOMMODATION,CHIEF FINANCIAL OFFICER,BUSINESS SUPPORT CENTRE LTD,491850,219.78,927365208
BEIS,Met Office,19/04/2024,07 EQUIPMENT,CHIEF FINANCIAL OFFICER,CABINET OFFICE - COF LEAD ACCOUNT,491496,3874,-
BEIS,Met Office,30/04/2024,06 ACCOMMODATION,CHIEF FINANCIAL OFFICER,CALOR GAS LIMITED,491834,19.61,207610984
BEIS,Met Office,30/04/2024,06 ACCOMMODATION,CHIEF FINANCIAL OFFICER,CALOR GAS LIMITED,491832,34.25,207610984
BEIS,Met Office,30/04/2024,06 ACCOMMODATION,CHIEF FINANCIAL OFFICER,CALOR GAS LIMITED,491835,34.25,207610984
BEIS,Met Office,30/04/2024,06 ACCOMMODATION,CHIEF FINANCIAL OFFICER,CALOR GAS LIMITED,491836,34.25,207610984
BEIS,Met Office,30/04/2024,06 ACCOMMODATION,CHIEF FINANCIAL OFFICER,CALOR GAS LIMITED,491837,34.25,207610984
BEIS,Met Office,30/04/2024,13 MISCELLANEOUS,CHIEF FINANCIAL OFFICER,CALOR GAS LIMITED,491838,34.25,207610984
BEIS,Met Office,30/04/2024,06 ACCOMMODATION,CHIEF FINANCIAL OFFICER,CALOR GAS LIMITED,491833,49.18,207610984
BEIS,Met Office,05/04/2024,06 ACCOMMODATION,CHIEF FINANCIAL OFFICER,CALOR GAS LIMITED,490731,629.94,207610984
BEIS,Met Office,11/04/2024,13 MISCELLANEOUS,CHIEF FINANCIAL OFFICER,CANON UK LTD,491145,26.34,523797128
BEIS,Met Office,18/04/2024,13 MISCELLANEOUS,CHIEF FINANCIAL OFFICER,CANON UK LTD,491459,26.34,523797128
BEIS,Met Office,11/04/2024,13 MISCELLANEOUS,CHIEF FINANCIAL OFFICER,CANON UK LTD,491143,239.6,523797128
BEIS,Met Office,11/04/2024,13 MISCELLANEOUS,CHIEF FINANCIAL OFFICER,CANON UK LTD,491142,509.34,523797128
BEIS,Met Office,18/04/2024,13 MISCELLANEOUS,CHIEF FINANCIAL OFFICER,CANON UK LTD,491459,653.88,523797128
BEIS,Met Office,09/04/2024,13 MISCELLANEOUS,CHIEF FINANCIAL OFFICER,CANON UK LTD,491047,2989.5,523797128
BEIS,Met Office,05/04/2024,11 SERVICES,CHIEF FINANCIAL OFFICER,CARBON CONTROL LIMITED,490803,2950,923 978678
BEIS,Met Office,24/04/2024,06 ACCOMMODATION,CHIEF FINANCIAL OFFICER,CARDIFF COMMISSIONING LTD,491397,225,484190139
BEIS,Met Office,18/04/2024,06 ACCOMMODATION,CHIEF FINANCIAL OFFICER,CARDIFF COMMISSIONING LTD,491396,3150,484190139
BEIS,Met Office,17/04/2024,13 MISCELLANEOUS,CHIEF FINANCIAL OFFICER,CARDIFF EXECUTIVE CENTRE LTD,491435,2.54,864497378
BEIS,Met Office,08/04/2024,13 MISCELLANEOUS,CHIEF FINANCIAL OFFICER,CARDIFF EXECUTIVE CENTRE LTD,490931,3.82,864497378
BEIS,Met Office,05/04/2024,06 ACCOMMODATION,CHIEF FINANCIAL OFFICER,CARDIFF EXECUTIVE CENTRE LTD,490661,2470,864497378
BEIS,Met Office,05/04/2024,06 ACCOMMODATION,CHIEF FINANCIAL OFFICER,CBRE MANAGED SERVICES LTD,490797,-55657.06,853936883
BEIS,Met Office,24/04/2024,06 ACCOMMODATION,CHIEF FINANCIAL OFFICER,CBRE MANAGED SERVICES LTD,491624,0.14,853936883
BEIS,Met Office,24/04/2024,06 ACCOMMODATION,CHIEF FINANCIAL OFFICER,CBRE MANAGED SERVICES LTD,491625,0.14,853936883
BEIS,Met Office,26/04/2024,06 ACCOMMODATION,CHIEF FINANCIAL OFFICER,CBRE MANAGED SERVICES LTD,491708,1,853936883
BEIS,Met Office,26/04/2024,06 ACCOMMODATION,CHIEF FINANCIAL OFFICER,CBRE MANAGED SERVICES LTD,491709,1,853936883
BEIS,Met Office,29/04/2024,06 ACCOMMODATION,CHIEF FINANCIAL OFFICER,CBRE MANAGED SERVICES LTD,491706,918,853936883
BEIS,Met Office,29/04/2024,06 ACCOMMODATION,CHIEF FINANCIAL OFFICER,CBRE MANAGED SERVICES LTD,491706,5000,853936883
BEIS,Met Office,29/04/2024,06 ACCOMMODATION,CHIEF FINANCIAL OFFICER,CBRE MANAGED SERVICES LTD,491707,14897.72,853936883
BEIS,Met Office,24/04/2024,06 ACCOMMODATION,CHIEF FINANCIAL OFFICER,CBRE MANAGED SERVICES LTD,491625,19248,853936883
BEIS,Met Office,29/04/2024,06 ACCOMMODATION,CHIEF FINANCIAL OFFICER,CBRE MANAGED SERVICES LTD,491711,19674.6,853936883
BEIS,Met Office,05/04/2024,06 ACCOMMODATION,CHIEF FINANCIAL OFFICER,CBRE MANAGED SERVICES LTD,490555,24586.92,853936883
BEIS,Met Office,24/04/2024,06 ACCOMMODATION,CHIEF FINANCIAL OFFICER,CBRE MANAGED SERVICES LTD,491624,31070,853936883
BEIS,Met Office,05/04/2024,06 ACCOMMODATION,CHIEF FINANCIAL OFFICER,CBRE MANAGED SERVICES LTD,490796,31070.14,853936883
BEIS,Met Office,26/04/2024,06 ACCOMMODATION,CHIEF FINANCIAL OFFICER,CBRE MANAGED SERVICES LTD,491709,35437.24,853936883
BEIS,Met Office,29/04/2024,06 ACCOMMODATION,CHIEF FINANCIAL OFFICER,CBRE MANAGED SERVICES LTD,491710,41206.83,853936883
BEIS,Met Office,29/04/2024,PLANT AND EQUIPMENT,CHIEF FINANCIAL OFFICER,CBRE MANAGED SERVICES LTD,491705,62709.3,853936883
BEIS,Met Office,26/04/2024,06 ACCOMMODATION,CHIEF FINANCIAL OFFICER,CBRE MANAGED SERVICES LTD,491708,169499.01,853936883
BEIS,Met Office,18/04/2024,08 SOFTWARE LICENCES,CHIEF FINANCIAL OFFICER,CEMAR,491443,850,915042161
BEIS,Met Office,17/04/2024,06 ACCOMMODATION,CHIEF FINANCIAL OFFICER,COMMERCIAL TRANSFER LTD,491335,1125.6,891436990
BEIS,Met Office,17/04/2024,11 SERVICES,CHIEF FINANCIAL OFFICER,COMMERCIAL TRANSFER LTD,491335,9550,891436990
BEIS,Met Office,24/04/2024,07 EQUIPMENT,CHIEF FINANCIAL OFFICER,COMPUTACENTER (UK) LTD,491674,239,490334648
BEIS,Met Office,24/04/2024,07 EQUIPMENT,CHIEF FINANCIAL OFFICER,COMPUTACENTER (UK) LTD,491676,239,490334648
BEIS,Met Office,04/04/2024,06 ACCOMMODATION,CHIEF FINANCIAL OFFICER,COUNCIL OF ISLES OF SCILLY,490732,1721.55,-
BEIS,Met Office,15/04/2024,13 MISCELLANEOUS,CHIEF FINANCIAL OFFICER,COURIER FORCE,491334,230,924397208
BEIS,Met Office,04/04/2024,13 MISCELLANEOUS,CHIEF FINANCIAL OFFICER,COURIER FORCE,490665,688,924397208
BEIS,Met Office,30/04/2024,13 MISCELLANEOUS,CHIEF FINANCIAL OFFICER,COURIER FORCE,491811,1098,924397208
BEIS,Met Office,22/04/2024,FIXTURE & FITTINGS,CHIEF FINANCIAL OFFICER,D&G OFFICE SERVICES LTD,491589,704.8,272997547
BEIS,Met Office,04/04/2024,FIXTURE & FITTINGS,CHIEF FINANCIAL OFFICER,D&G OFFICE SERVICES LTD,490663,819.8,272997547
BEIS,Met Office,12/04/2024,06 ACCOMMODATION,CHIEF FINANCIAL OFFICER,D&G OFFICE SERVICES LTD,491174,3299.75,272997547
BEIS,Met Office,10/04/2024,06 ACCOMMODATION,CHIEF FINANCIAL OFFICER,DACORUM BOROUGH COUNCIL,490724,9797.87,-
BEIS,Met Office,15/04/2024,05 CONSULTANTS,CHIEF FINANCIAL OFFICER,DELOITTE LLP LIMITED,490570,50000,GB809707706
BEIS,Met Office,12/04/2024,06 ACCOMMODATION,CHIEF FINANCIAL OFFICER,DEPARTMENT OF FINANCE AND PERSONNEL,491237,33693.55,888808059
BEIS,Met Office,22/04/2024,06 ACCOMMODATION,CHIEF FINANCIAL OFFICER,Devon County Council,490703,124166,142208113
BEIS,Met Office,22/04/2024,11 SERVICES,CHIEF FINANCIAL OFFICER,DUN & BRADSTREET LTD,491549,-0.37,505189158
BEIS,Met Office,22/04/2024,11 SERVICES,CHIEF FINANCIAL OFFICER,DUN & BRADSTREET LTD,491549,29686,505189158
BEIS,Met Office,09/04/2024,13 MISCELLANEOUS,CHIEF FINANCIAL OFFICER,DWYFOR COFFEE COMPANY LTD,491045,32.6,559811116
BEIS,Met Office,30/04/2024,13 MISCELLANEOUS,CHIEF FINANCIAL OFFICER,EDEN SPRINGS UK LTD,491808,584.65,232160411
BEIS,Met Office,05/04/2024,13 MISCELLANEOUS,CHIEF FINANCIAL OFFICER,EDEN SPRINGS UK LTD,490706,649.67,232160411
BEIS,Met Office,15/04/2024,06 ACCOMMODATION,CHIEF FINANCIAL OFFICER,EDF ENERGY CUSTOMERS PLC,491280,49917.96,523041202
BEIS,Met Office,24/04/2024,06 ACCOMMODATION,CHIEF FINANCIAL OFFICER,EDF ENERGY CUSTOMERS PLC,491538,196342.3,523041202
BEIS,Met Office,15/04/2024,06 ACCOMMODATION,CHIEF FINANCIAL OFFICER,EDF ENERGY CUSTOMERS PLC,491180,198633.26,523041202
BEIS,Met Office,15/04/2024,06 ACCOMMODATION,CHIEF FINANCIAL OFFICER,EDF ENERGY CUSTOMERS PLC,491181,565319.89,523041202
BEIS,Met Office,24/04/2024,11 SERVICES,CHIEF FINANCIAL OFFICER,EDSON TIGER LTD,491593,5000,166910983
BEIS,Met Office,10/04/2024,11 SERVICES,CHIEF FINANCIAL OFFICER,EDSON TIGER LTD,488923,8050,166910983
BEIS,Met Office,24/04/2024,11 SERVICES,CHIEF FINANCIAL OFFICER,EIR,25830,62.36,4736919B
BEIS,Met Office,04/04/2024,06 ACCOMMODATION,CHIEF FINANCIAL OFFICER,ELECTRICAL SAFETY CONSULTANTS LTD,490678,2400,-
BEIS,Met Office,04/04/2024,11 SERVICES,CHIEF FINANCIAL OFFICER,ELECTRICAL SAFETY CONSULTANTS LTD,490667,3600,-
BEIS,Met Office,10/04/2024,03 STAFF COSTS T&S,CHIEF FINANCIAL OFFICER,ENTERPRISE RENT A CAR UK LTD,491175,93.5,215557314
BEIS,Met Office,09/04/2024,03 STAFF COSTS T&S,CHIEF FINANCIAL OFFICER,ENTERPRISE RENT A CAR UK LTD,491096,147.39,215557314
BEIS,Met Office,23/04/2024,03 STAFF COSTS T&S,CHIEF FINANCIAL OFFICER,ENTERPRISE RENT A CAR UK LTD,491632,171.95,215557314
BEIS,Met Office,30/04/2024,03 STAFF COSTS T&S,CHIEF FINANCIAL OFFICER,ENTERPRISE RENT A CAR UK LTD,491803,171.95,215557314
BEIS,Met Office,30/04/2024,03 STAFF COSTS T&S,CHIEF FINANCIAL OFFICER,ENTERPRISE RENT A CAR UK LTD,491844,816.87,215557314
BEIS,Met Office,16/04/2024,03 STAFF COSTS T&S,CHIEF FINANCIAL OFFICER,ENTERPRISE RENT A CAR UK LTD,491368,1265.43,215557314
BEIS,Met Office,09/04/2024,03 STAFF COSTS T&S,CHIEF FINANCIAL OFFICER,ENTERPRISE RENT A CAR UK LTD,491055,2122.17,215557314
BEIS,Met Office,23/04/2024,03 STAFF COSTS T&S,CHIEF FINANCIAL OFFICER,ENTERPRISE RENT A CAR UK LTD,491633,2665.53,215557314
BEIS,Met Office,04/04/2024,03 STAFF COSTS T&S,CHIEF FINANCIAL OFFICER,ENTERPRISE RENT A CAR UK LTD,490713,3343.42,215557314
BEIS,Met Office,30/04/2024,03 STAFF COSTS T&S,CHIEF FINANCIAL OFFICER,ENTERPRISE RENT A CAR UK LTD,491804,4089.99,215557314
BEIS,Met Office,25/04/2024,06 ACCOMMODATION,CHIEF FINANCIAL OFFICER,Exeter City Council,489838,163800,142335594
BEIS,Met Office,10/04/2024,11 SERVICES,CHIEF FINANCIAL OFFICER,EXPONENTIAL-E,490974,30.96,GB798572653
BEIS,Met Office,05/04/2024,FIXTURE & FITTINGS,CHIEF FINANCIAL OFFICER,FMS INTERIOR SERVICES LTD,490917,0,922056940
BEIS,Met Office,05/04/2024,FIXTURE & FITTINGS,CHIEF FINANCIAL OFFICER,FMS INTERIOR SERVICES LTD,490917,83.4,922056940
BEIS,Met Office,05/04/2024,FIXTURE & FITTINGS,CHIEF FINANCIAL OFFICER,FMS INTERIOR SERVICES LTD,490917,102.2,922056940
BEIS,Met Office,05/04/2024,FIXTURE & FITTINGS,CHIEF FINANCIAL OFFICER,FMS INTERIOR SERVICES LTD,490917,110.24,922056940
BEIS,Met Office,05/04/2024,FIXTURE & FITTINGS,CHIEF FINANCIAL OFFICER,FMS INTERIOR SERVICES LTD,490917,124.5,922056940
BEIS,Met Office,05/04/2024,FIXTURE & FITTINGS,CHIEF FINANCIAL OFFICER,FMS INTERIOR SERVICES LTD,490917,148,922056940
BEIS,Met Office,05/04/2024,FIXTURE & FITTINGS,CHIEF FINANCIAL OFFICER,FMS INTERIOR SERVICES LTD,490917,152.64,922056940
BEIS,Met Office,05/04/2024,FIXTURE & FITTINGS,CHIEF FINANCIAL OFFICER,FMS INTERIOR SERVICES LTD,490917,159,922056940
BEIS,Met Office,05/04/2024,FIXTURE & FITTINGS,CHIEF FINANCIAL OFFICER,FMS INTERIOR SERVICES LTD,490917,164.05,922056940
BEIS,Met Office,05/04/2024,FIXTURE & FITTINGS,CHIEF FINANCIAL OFFICER,FMS INTERIOR SERVICES LTD,490917,172.18,922056940
BEIS,Met Office,05/04/2024,FIXTURE & FITTINGS,CHIEF FINANCIAL OFFICER,FMS INTERIOR SERVICES LTD,490917,266.1,922056940
BEIS,Met Office,05/04/2024,FIXTURE & FITTINGS,CHIEF FINANCIAL OFFICER,FMS INTERIOR SERVICES LTD,490917,306,922056940
BEIS,Met Office,05/04/2024,FIXTURE & FITTINGS,CHIEF FINANCIAL OFFICER,FMS INTERIOR SERVICES LTD,490917,487,922056940
BEIS,Met Office,05/04/2024,FIXTURE & FITTINGS,CHIEF FINANCIAL OFFICER,FMS INTERIOR SERVICES LTD,490917,704,922056940
BEIS,Met Office,05/04/2024,FIXTURE & FITTINGS,CHIEF FINANCIAL OFFICER,FMS INTERIOR SERVICES LTD,490917,1880,922056940
BEIS,Met Office,04/04/2024,06 ACCOMMODATION,CHIEF FINANCIAL OFFICER,FUTURE CLEANING SERVICES (SW) LTD.,490799,-383.91,756916489
BEIS,Met Office,04/04/2024,06 ACCOMMODATION,CHIEF FINANCIAL OFFICER,FUTURE CLEANING SERVICES (SW) LTD.,441596,383.91,756916489
BEIS,Met Office,04/04/2024,FIXTURE & FITTINGS,CHIEF FINANCIAL OFFICER,GALLIFORD TRY ASSET INTELLIGENCE LTD,490390,5539.97,223413506
BEIS,Met Office,04/04/2024,FIXTURE & FITTINGS,CHIEF FINANCIAL OFFICER,GALLIFORD TRY ASSET INTELLIGENCE LTD,490390,5844.18,223413506
BEIS,Met Office,12/04/2024,11 SERVICES,CHIEF FINANCIAL OFFICER,GAMMA TELECOM LTD,491214,570.83,823820344
BEIS,Met Office,12/04/2024,11 SERVICES,CHIEF FINANCIAL OFFICER,GAMMA TELECOM LTD,491214,1629.04,823820344
BEIS,Met Office,12/04/2024,11 SERVICES,CHIEF FINANCIAL OFFICER,GAMMA TELECOM LTD,491214,27997.74,823820344
BEIS,Met Office,16/04/2024,11 SERVICES,CHIEF FINANCIAL OFFICER,GB GROUP PLC,491282,199.21,539716218
BEIS,Met Office,16/04/2024,11 SERVICES,CHIEF FINANCIAL OFFICER,GB GROUP PLC,491311,843.7,539716218
BEIS,Met Office,19/04/2024,11 SERVICES,CHIEF FINANCIAL OFFICER,GIBRALTAR NYNEX COMMUNICATIONS LTD,491123,660,NOVAT
BEIS,Met Office,10/04/2024,06 ACCOMMODATION,CHIEF FINANCIAL OFFICER,Glasgow City Council,490804,8416.2,653051560
BEIS,Met Office,17/04/2024,11 SERVICES,CHIEF FINANCIAL OFFICER,INTEROUTE COMMUNICATIONS LIMITED,491391,8000,832 7071 39
BEIS,Met Office,05/04/2024,11 SERVICES,CHIEF FINANCIAL OFFICER,JERSEY TELECOM,490856,1299.29,NOTVATREG
BEIS,Met Office,11/04/2024,11 SERVICES,CHIEF FINANCIAL OFFICER,LAND & PROPERTY SERVICES,490792,64.5,888808059
BEIS,Met Office,29/04/2024,11 SERVICES,CHIEF FINANCIAL OFFICER,LAND & PROPERTY SERVICES,491745,69,888808059
BEIS,Met Office,10/04/2024,11 SERVICES,CHIEF FINANCIAL OFFICER,LAND & PROPERTY SERVICES,491119,150.5,888808059
BEIS,Met Office,05/04/2024,11 SERVICES,CHIEF FINANCIAL OFFICER,LEASEDRIVE RENTAL MANAGEMENT LTD,490939,1555.04,733546040
BEIS,Met Office,19/04/2024,06 ACCOMMODATION,CHIEF FINANCIAL OFFICER,MACC DEVELOPMENTS LTD,491551,1000,134669201
BEIS,Met Office,05/04/2024,06 ACCOMMODATION,CHIEF FINANCIAL OFFICER,MAPP (PROPERTY MANAGEMENT) LTD,488714,-30.44,725900735
BEIS,Met Office,17/04/2024,11 SERVICES,CHIEF FINANCIAL OFFICER,MAWASEM LTD,490543,244145.91,197694731
BEIS,Met Office,08/04/2024,08 SOFTWARE LICENCES,CHIEF FINANCIAL OFFICER,METRIKUS LIMITED,490754,1320,321 8772 02
BEIS,Met Office,26/04/2024,17 INTEREST,CHIEF FINANCIAL OFFICER,Mid Sussex District Council,491762,-64.62,-
BEIS,Met Office,16/04/2024,11 SERVICES,CHIEF FINANCIAL OFFICER,MITIE SECURITY LTD,491286,125.64,416706654
BEIS,Met Office,29/04/2024,11 SERVICES,CHIEF FINANCIAL OFFICER,MITIE SECURITY LTD,491766,3833,416706654
BEIS,Met Office,29/04/2024,11 SERVICES,CHIEF FINANCIAL OFFICER,MITIE SECURITY LTD,491766,8946.57,416706654
BEIS,Met Office,04/04/2024,11 SERVICES,CHIEF FINANCIAL OFFICER,MITIE SECURITY LTD,490751,15097.3,416706654
BEIS,Met Office,29/04/2024,11 SERVICES,CHIEF FINANCIAL OFFICER,MITIE SECURITY LTD,491767,25627.6,416706654
BEIS,Met Office,05/04/2024,06 ACCOMMODATION,CHIEF FINANCIAL OFFICER,MORAY COUNCIL,490854,1716.02,663755506
BEIS,Met Office,17/04/2024,06 ACCOMMODATION,CHIEF FINANCIAL OFFICER,MORAY COUNCIL,491404,3112.5,663755506
BEIS,Met Office,05/04/2024,06 ACCOMMODATION,CHIEF FINANCIAL OFFICER,MOUNT CHARLES GROUP LTD,490810,496.27,517116274
BEIS,Met Office,19/04/2024,08 SOFTWARE LICENCES,CHIEF FINANCIAL OFFICER,MRI SOFTWARE LIMITED,491375,2200,916220551
BEIS,Met Office,04/04/2024,11 SERVICES,CHIEF FINANCIAL OFFICER,National Audit Office,490707,61000,417632457
BEIS,Met Office,10/04/2024,11 SERVICES,CHIEF FINANCIAL OFFICER,NEOS NETWORKS LTD,491053,1167.75,553769603
BEIS,Met Office,05/04/2024,13 MISCELLANEOUS,CHIEF FINANCIAL OFFICER,NORSCOTT VENDING SERVICES LTD,490647,30,751402071
BEIS,Met Office,05/04/2024,13 MISCELLANEOUS,CHIEF FINANCIAL OFFICER,NORSCOTT VENDING SERVICES LTD,490771,85,751402071
BEIS,Met Office,18/04/2024,13 MISCELLANEOUS,CHIEF FINANCIAL OFFICER,NORSK GLOBAL,491398,0,GB635843324
BEIS,Met Office,04/04/2024,13 MISCELLANEOUS,CHIEF FINANCIAL OFFICER,NORSK GLOBAL,490634,11.39,GB635843324
BEIS,Met Office,18/04/2024,13 MISCELLANEOUS,CHIEF FINANCIAL OFFICER,NORSK GLOBAL,491390,45.52,GB635843324
BEIS,Met Office,11/04/2024,13 MISCELLANEOUS,CHIEF FINANCIAL OFFICER,NORSK GLOBAL,491141,228.96,GB635843324
BEIS,Met Office,24/04/2024,13 MISCELLANEOUS,CHIEF FINANCIAL OFFICER,NORSK GLOBAL,491652,360.33,GB635843324
BEIS,Met Office,08/04/2024,13 MISCELLANEOUS,CHIEF FINANCIAL OFFICER,NORSK GLOBAL,490976,717.14,GB635843324
BEIS,Met Office,18/04/2024,13 MISCELLANEOUS,CHIEF FINANCIAL OFFICER,NORSK GLOBAL,491398,812.94,GB635843324
BEIS,Met Office,08/04/2024,13 MISCELLANEOUS,CHIEF FINANCIAL OFFICER,NORSK GLOBAL,490973,1096.02,GB635843324
BEIS,Met Office,08/04/2024,13 MISCELLANEOUS,CHIEF FINANCIAL OFFICER,NORSK GLOBAL,490972,1394.98,GB635843324
BEIS,Met Office,04/04/2024,13 MISCELLANEOUS,CHIEF FINANCIAL OFFICER,NORSK GLOBAL,490781,1692.23,GB635843324
BEIS,Met Office,30/04/2024,13 MISCELLANEOUS,CHIEF FINANCIAL OFFICER,NORSK GLOBAL,491768,2265.37,GB635843324
BEIS,Met Office,16/04/2024,06 ACCOMMODATION,CHIEF FINANCIAL OFFICER,NPOWER LIMITED,391573,-6018.19,768362492
BEIS,Met Office,16/04/2024,06 ACCOMMODATION,CHIEF FINANCIAL OFFICER,NPOWER LIMITED,491407,6018.19,768362492
BEIS,Met Office,05/04/2024,11 SERVICES,CHIEF FINANCIAL OFFICER,OPEN TEXT UK LTD,490777,3523.13,837871308
BEIS,Met Office,05/04/2024,13 MISCELLANEOUS,CHIEF FINANCIAL OFFICER,Parcelforce,490806,10.7,GB 243 1700 02
BEIS,Met Office,04/04/2024,13 MISCELLANEOUS,CHIEF FINANCIAL OFFICER,Parcelforce,490714,31.45,GB 243 1700 02
BEIS,Met Office,12/04/2024,13 MISCELLANEOUS,CHIEF FINANCIAL OFFICER,Parcelforce,491225,67.35,GB 243 1700 02
BEIS,Met Office,04/04/2024,13 MISCELLANEOUS,CHIEF FINANCIAL OFFICER,Parcelforce,490715,161.83,GB 243 1700 02
BEIS,Met Office,24/04/2024,06 ACCOMMODATION,CHIEF FINANCIAL OFFICER,PERTH AND KINROSS COUNCIL,485092,-2465.1,-
BEIS,Met Office,24/04/2024,06 ACCOMMODATION,CHIEF FINANCIAL OFFICER,PERTH AND KINROSS COUNCIL,491679,5881.58,-
BEIS,Met Office,19/04/2024,06 ACCOMMODATION,CHIEF FINANCIAL OFFICER,PLYMOUTH CITY COUNCIL NDR,491273,-3992,-
BEIS,Met Office,05/04/2024,06 ACCOMMODATION,CHIEF FINANCIAL OFFICER,PLYMOUTH CITY COUNCIL NDR,490729,3992,-
BEIS,Met Office,17/04/2024,13 MISCELLANEOUS,CHIEF FINANCIAL OFFICER,POSTURITE (UK) LTD,491371,30.35,583565114
BEIS,Met Office,23/04/2024,13 MISCELLANEOUS,CHIEF FINANCIAL OFFICER,POSTURITE (UK) LTD,491605,38.57,583565114
BEIS,Met Office,17/04/2024,13 MISCELLANEOUS,CHIEF FINANCIAL OFFICER,POSTURITE (UK) LTD,491308,50,583565114
BEIS,Met Office,17/04/2024,13 MISCELLANEOUS,CHIEF FINANCIAL OFFICER,POSTURITE (UK) LTD,491309,50,583565114
BEIS,Met Office,23/04/2024,13 MISCELLANEOUS,CHIEF FINANCIAL OFFICER,POSTURITE (UK) LTD,491516,50,583565114
BEIS,Met Office,23/04/2024,13 MISCELLANEOUS,CHIEF FINANCIAL OFFICER,POSTURITE (UK) LTD,491590,50,583565114
BEIS,Met Office,30/04/2024,13 MISCELLANEOUS,CHIEF FINANCIAL OFFICER,POSTURITE (UK) LTD,491764,50,583565114
BEIS,Met Office,26/04/2024,13 MISCELLANEOUS,CHIEF FINANCIAL OFFICER,POSTURITE (UK) LTD,491740,54.08,583565114
BEIS,Met Office,17/04/2024,13 MISCELLANEOUS,CHIEF FINANCIAL OFFICER,POSTURITE (UK) LTD,491372,70.82,583565114
BEIS,Met Office,05/04/2024,13 MISCELLANEOUS,CHIEF FINANCIAL OFFICER,POSTURITE (UK) LTD,490816,74.71,583565114
BEIS,Met Office,23/04/2024,13 MISCELLANEOUS,CHIEF FINANCIAL OFFICER,POSTURITE (UK) LTD,491515,75,583565114
BEIS,Met Office,26/04/2024,13 MISCELLANEOUS,CHIEF FINANCIAL OFFICER,POSTURITE (UK) LTD,491738,75.7,583565114
BEIS,Met Office,17/04/2024,13 MISCELLANEOUS,CHIEF FINANCIAL OFFICER,POSTURITE (UK) LTD,491310,86.35,583565114
BEIS,Met Office,23/04/2024,13 MISCELLANEOUS,CHIEF FINANCIAL OFFICER,POSTURITE (UK) LTD,491622,92.55,583565114
BEIS,Met Office,26/04/2024,13 MISCELLANEOUS,CHIEF FINANCIAL OFFICER,POSTURITE (UK) LTD,491743,113.89,583565114
BEIS,Met Office,05/04/2024,13 MISCELLANEOUS,CHIEF FINANCIAL OFFICER,POSTURITE (UK) LTD,490817,122.2,583565114
BEIS,Met Office,17/04/2024,13 MISCELLANEOUS,CHIEF FINANCIAL OFFICER,POSTURITE (UK) LTD,491373,158.41,583565114
BEIS,Met Office,26/04/2024,13 MISCELLANEOUS,CHIEF FINANCIAL OFFICER,POSTURITE (UK) LTD,491741,193.52,583565114
BEIS,Met Office,05/04/2024,13 MISCELLANEOUS,CHIEF FINANCIAL OFFICER,POSTURITE (UK) LTD,490648,379.58,583565114
BEIS,Met Office,30/04/2024,13 MISCELLANEOUS,CHIEF FINANCIAL OFFICER,POSTURITE (UK) LTD,491854,606.46,583565114
BEIS,Met Office,26/04/2024,13 MISCELLANEOUS,CHIEF FINANCIAL OFFICER,POSTURITE (UK) LTD,491742,636.36,583565114
BEIS,Met Office,17/04/2024,13 MISCELLANEOUS,CHIEF FINANCIAL OFFICER,POSTURITE (UK) LTD,491144,820.45,583565114
BEIS,Met Office,26/04/2024,13 MISCELLANEOUS,CHIEF FINANCIAL OFFICER,POSTURITE (UK) LTD,491657,909.21,583565114
BEIS,Met Office,18/04/2024,06 ACCOMMODATION,CHIEF FINANCIAL OFFICER,POWER NI ENERGY LTD,491455,55.34,617518142
BEIS,Met Office,08/04/2024,06 ACCOMMODATION,CHIEF FINANCIAL OFFICER,POWER NI ENERGY LTD,490949,759.39,617518142
BEIS,Met Office,18/04/2024,13 MISCELLANEOUS,CHIEF FINANCIAL OFFICER,POWER PACKING EXPORT SERVICE,491395,95,249 7326 31
BEIS,Met Office,04/04/2024,03 STAFF COSTS T&S,CHIEF FINANCIAL OFFICER,RAINBOW CITY TAXIS,490770,5.9,724295039
BEIS,Met Office,15/04/2024,06 ACCOMMODATION,CHIEF FINANCIAL OFFICER,RAINBOW OFFICE DESIGN LTD,491283,183,769523587
BEIS,Met Office,15/04/2024,06 ACCOMMODATION,CHIEF FINANCIAL OFFICER,RAINBOW OFFICE DESIGN LTD,491283,779.07,769523587
BEIS,Met Office,10/04/2024,11 SERVICES,CHIEF FINANCIAL OFFICER,REDACTED � PERSONAL DATA,491118,-6,729159704
BEIS,Met Office,10/04/2024,11 SERVICES,CHIEF FINANCIAL OFFICER,REDACTED � PERSONAL DATA,432838,6,729159704
BEIS,Met Office,10/04/2024,11 SERVICES,CHIEF FINANCIAL OFFICER,Reuters Ltd,490768,2610,397000555
BEIS,Met Office,12/04/2024,13 MISCELLANEOUS,CHIEF FINANCIAL OFFICER,RICHARD JAMES INTERNATIONAL LIMITED,491244,151.95,567 5529 01
BEIS,Met Office,18/04/2024,13 MISCELLANEOUS,CHIEF FINANCIAL OFFICER,RICHARD JAMES INTERNATIONAL LIMITED,491434,151.95,567 5529 01
BEIS,Met Office,12/04/2024,13 MISCELLANEOUS,CHIEF FINANCIAL OFFICER,RICHARD JAMES INTERNATIONAL LIMITED,491239,280.95,567 5529 01
BEIS,Met Office,04/04/2024,13 MISCELLANEOUS,CHIEF FINANCIAL OFFICER,RICHARD JAMES INTERNATIONAL LIMITED,490696,449.23,567 5529 01
BEIS,Met Office,18/04/2024,13 MISCELLANEOUS,CHIEF FINANCIAL OFFICER,RICHARD JAMES INTERNATIONAL LIMITED,491433,521.75,567 5529 01
BEIS,Met Office,18/04/2024,13 MISCELLANEOUS,CHIEF FINANCIAL OFFICER,RICHARD JAMES INTERNATIONAL LIMITED,491432,840.95,567 5529 01
BEIS,Met Office,11/04/2024,06 ACCOMMODATION,CHIEF FINANCIAL OFFICER,RIVER RIDGE,491169,165.78,176286083
BEIS,Met Office,11/04/2024,06 ACCOMMODATION,CHIEF FINANCIAL OFFICER,SAFESTORE LTD,491171,2484.11,722887607
BEIS,Met Office,05/04/2024,06 ACCOMMODATION,CHIEF FINANCIAL OFFICER,Severn Trent Water Ltd,490780,230.74,486985565
BEIS,Met Office,30/04/2024,06 ACCOMMODATION,CHIEF FINANCIAL OFFICER,Severn Trent Water Ltd,491809,294.93,486985565
BEIS,Met Office,12/04/2024,06 ACCOMMODATION,CHIEF FINANCIAL OFFICER,SHETLAND CLEANING SERVICES,491223,831.13,430028404
BEIS,Met Office,09/04/2024,06 ACCOMMODATION,CHIEF FINANCIAL OFFICER,SHETLAND GRASSCUTTING,491074,2860.25,978367258
BEIS,Met Office,18/04/2024,06 ACCOMMODATION,CHIEF FINANCIAL OFFICER,Shetland Islands Council,491451,124.5,267858304
BEIS,Met Office,24/04/2024,06 ACCOMMODATION,CHIEF FINANCIAL OFFICER,Shetland Islands Council,491680,125,267858304
BEIS,Met Office,18/04/2024,06 ACCOMMODATION,CHIEF FINANCIAL OFFICER,Shetland Islands Council,491452,498,267858304
BEIS,Met Office,18/04/2024,06 ACCOMMODATION,CHIEF FINANCIAL OFFICER,Shetland Islands Council,491453,42976,267858304
BEIS,Met Office,30/04/2024,FIXTURE & FITTINGS,CHIEF FINANCIAL OFFICER,SIGNS EXPRESS (EXETER),491840,48.62,631397439
BEIS,Met Office,30/04/2024,FIXTURE & FITTINGS,CHIEF FINANCIAL OFFICER,SIGNS EXPRESS (EXETER),491840,48.62,631397439
BEIS,Met Office,30/04/2024,FIXTURE & FITTINGS,CHIEF FINANCIAL OFFICER,SIGNS EXPRESS (EXETER),491840,48.62,631397439
BEIS,Met Office,30/04/2024,FIXTURE & FITTINGS,CHIEF FINANCIAL OFFICER,SIGNS EXPRESS (EXETER),491840,59.4,631397439
BEIS,Met Office,30/04/2024,FIXTURE & FITTINGS,CHIEF FINANCIAL OFFICER,SIGNS EXPRESS (EXETER),491840,192.63,631397439
BEIS,Met Office,30/04/2024,FIXTURE & FITTINGS,CHIEF FINANCIAL OFFICER,SIGNS EXPRESS (EXETER),491840,884.58,631397439
BEIS,Met Office,24/04/2024,06 ACCOMMODATION,CHIEF FINANCIAL OFFICER,South West Water Ltd,491466,3756.94,236873674
BEIS,Met Office,30/04/2024,06 ACCOMMODATION,CHIEF FINANCIAL OFFICER,Sse Generation Ltd,491815,160,553769603
BEIS,Met Office,05/04/2024,06 ACCOMMODATION,CHIEF FINANCIAL OFFICER,St. Modwen Properties Limited,490666,48.55,005489575
BEIS,Met Office,05/04/2024,11 SERVICES,CHIEF FINANCIAL OFFICER,STARK SOFTWARE INTERNATIONAL LTD,490698,411,644372829
BEIS,Met Office,24/04/2024,06 ACCOMMODATION,CHIEF FINANCIAL OFFICER,Stirling Council,491677,423.3,663873401
BEIS,Met Office,24/04/2024,06 ACCOMMODATION,CHIEF FINANCIAL OFFICER,Stirling Council,491678,697.2,663873401
BEIS,Met Office,12/04/2024,11 SERVICES,CHIEF FINANCIAL OFFICER,SURE SOUTH ATLANTIC LTD,491243,2124.59,NOVATREG
BEIS,Met Office,12/04/2024,11 SERVICES,CHIEF FINANCIAL OFFICER,SURE SOUTH ATLANTIC LTD,491271,4801,-
BEIS,Met Office,16/04/2024,11 SERVICES,CHIEF FINANCIAL OFFICER,SURE SOUTH ATLANTIC LTD,491270,6478,-
BEIS,Met Office,15/04/2024,11 SERVICES,CHIEF FINANCIAL OFFICER,TELEFONICA O2 UK LIMITED,491312,57.4,778603785
BEIS,Met Office,30/04/2024,11 SERVICES,CHIEF FINANCIAL OFFICER,TELEFONICA O2 UK LIMITED,491856,61.45,778603785
BEIS,Met Office,15/04/2024,11 SERVICES,CHIEF FINANCIAL OFFICER,TELEFONICA O2 UK LIMITED,491212,3822.55,778603785
BEIS,Met Office,05/04/2024,11 SERVICES,CHIEF FINANCIAL OFFICER,THE WOOLLY SHEPHERD,490843,329.63,111326371
BEIS,Met Office,15/04/2024,FIXTURE & FITTINGS,CHIEF FINANCIAL OFFICER,THORLUX LIGHTING,487030,-1186.1,GB 109 939 440
BEIS,Met Office,15/04/2024,11 SERVICES,CHIEF FINANCIAL OFFICER,THORLUX LIGHTING,491313,1624.27,GB 109 939 440
BEIS,Met Office,05/04/2024,06 ACCOMMODATION,CHIEF FINANCIAL OFFICER,TOP RANK CLEANING SERVICES LTD,490681,470.56,-
BEIS,Met Office,05/04/2024,06 ACCOMMODATION,CHIEF FINANCIAL OFFICER,TOP RANK CLEANING SERVICES LTD,490681,480,-
BEIS,Met Office,17/04/2024,06 ACCOMMODATION,CHIEF FINANCIAL OFFICER,TOTAL GAS & POWER LIMITED,491378,1212.88,689638949
BEIS,Met Office,19/04/2024,06 ACCOMMODATION,CHIEF FINANCIAL OFFICER,TOTAL GAS & POWER LIMITED,491379,17553.21,689638949
BEIS,Met Office,05/04/2024,11 SERVICES,CHIEF FINANCIAL OFFICER,TTC Commercial Services Limited,490853,131.04,820219467
BEIS,Met Office,05/04/2024,06 ACCOMMODATION,CHIEF FINANCIAL OFFICER,UNIVERSAL CLEANING SERVICES,490837,56.05,-
BEIS,Met Office,05/04/2024,06 ACCOMMODATION,CHIEF FINANCIAL OFFICER,UNIVERSAL CLEANING SERVICES,490837,109.67,-
BEIS,Met Office,30/04/2024,11 SERVICES,CHIEF FINANCIAL OFFICER,WEBEX COMMUNICATIONS UK LTD,491807,209.92,815974302
BEIS,Met Office,05/04/2024,06 ACCOMMODATION,CHIEF FINANCIAL OFFICER,Welsh Government,490723,750,GD 8888 350 56
BEIS,Met Office,05/04/2024,06 ACCOMMODATION,CHIEF FINANCIAL OFFICER,WEST LANCASHIRE BOROUGH COUNCIL,490659,152.64,-
BEIS,Met Office,12/04/2024,11 SERVICES,CHIEF FINANCIAL OFFICER,WESTEXE GROUP,491269,60,913 4460 43
BEIS,Met Office,17/04/2024,11 SERVICES,CHIEF FINANCIAL OFFICER,WESTEXE GROUP,491381,60,913 4460 43
BEIS,Met Office,29/04/2024,11 SERVICES,CHIEF FINANCIAL OFFICER,WESTEXE GROUP,491765,60,913 4460 43
BEIS,Met Office,22/04/2024,07 EQUIPMENT,CHIEF FINANCIAL OFFICER,WESTEXE GROUP,491587,19500,913 4460 43
BEIS,Met Office,10/04/2024,11 SERVICES,CHIEF FINANCIAL OFFICER,WESTFIELD HEALTH & WELLBEING LTD,491086,2000,229171411
BEIS,Met Office,19/04/2024,11 SERVICES,CHIEF FINANCIAL OFFICER,WILDLIFE TRUSTS,491550,2300,694 4739 81
BEIS,Met Office,26/04/2024,11 SERVICES,CHIEF FINANCIAL OFFICER,WOMBLE BOND DICKINSON (UK) LLP,491753,16200,GB123393627
BEIS,Met Office,04/04/2024,11 SERVICES,CHIEF FINANCIAL OFFICER,WOMBLE BOND DICKINSON (UK) LLP,490693,17000,GB123393627
BEIS,Met Office,04/04/2024,11 SERVICES,CHIEF FINANCIAL OFFICER,WOMBLE BOND DICKINSON (UK) LLP,490694,31656.4,GB123393627
BEIS,Met Office,05/04/2024,11 SERVICES,CHIEF FINANCIAL OFFICER,WT CONSULTANCY (SW) LTD,490683,16400,223 4662 25
BEIS,Met Office,17/04/2024,06 ACCOMMODATION,CHIEF FINANCIAL OFFICER,XEIAD,491401,3679.61,811321091
BEIS,Met Office,22/04/2024,11 SERVICES,CHIEF FINANCIAL OFFICER,XEIAD,491586,4393.75,811321091
BEIS,Met Office,12/04/2024,11 SERVICES,MARKETS,2CV,491240,33500,GB 523 2129 84
BEIS,Met Office,12/04/2024,11 SERVICES,MARKETS,ACCELERATION EMARKETING,491241,3596.53,848940776
BEIS,Met Office,04/04/2024,11 SERVICES,MARKETS,ADOPSTAR,490702,1325,115036848
BEIS,Met Office,09/04/2024,12 INTERNATIONAL,MARKETS,APPLIED SATELLITE TECHNOLOGY SYSTEMS LTD,491051,33.42,720108683
BEIS,Met Office,17/04/2024,13 MISCELLANEOUS,MARKETS,ARTHUR J. GALLAGHER INSURANCE BROKERS LIMITED,491402,4000,GB484746209
BEIS,Met Office,24/04/2024,13 MISCELLANEOUS,MARKETS,ARTHUR J. GALLAGHER INSURANCE BROKERS LIMITED,491664,11200,GB484746209
BEIS,Met Office,08/04/2024,11 SERVICES,MARKETS,AUTOMATED DOCUMENT SERVICES LTD,490820,6129.96,105353449
BEIS,Met Office,17/04/2024,13 MISCELLANEOUS,MARKETS,AVIVA INSURANCE UK LIMITED,491403,1150,105 437 300
BEIS,Met Office,22/04/2024,11 SERVICES,MARKETS,BRYERS LLP,491542,207.5,609635917
BEIS,Met Office,16/04/2024,11 SERVICES,MARKETS,BRYERS LLP,490637,4281.31,609635917
BEIS,Met Office,19/04/2024,07 EQUIPMENT,MARKETS,CABINET OFFICE - COF LEAD ACCOUNT,491496,3874,-
BEIS,Met Office,17/04/2024,07 EQUIPMENT,MARKETS,Campbell Scientific Ltd,490841,29.45,428453933
BEIS,Met Office,17/04/2024,07 EQUIPMENT,MARKETS,Campbell Scientific Ltd,490841,47.7,428453933
BEIS,Met Office,17/04/2024,07 EQUIPMENT,MARKETS,Campbell Scientific Ltd,490841,50,428453933
BEIS,Met Office,17/04/2024,07 EQUIPMENT,MARKETS,Campbell Scientific Ltd,490841,54.9,428453933
BEIS,Met Office,17/04/2024,07 EQUIPMENT,MARKETS,Campbell Scientific Ltd,490841,76.5,428453933
BEIS,Met Office,17/04/2024,07 EQUIPMENT,MARKETS,Campbell Scientific Ltd,490841,81.9,428453933
BEIS,Met Office,17/04/2024,07 EQUIPMENT,MARKETS,Campbell Scientific Ltd,490841,82.8,428453933
BEIS,Met Office,17/04/2024,07 EQUIPMENT,MARKETS,Campbell Scientific Ltd,490841,100.8,428453933
BEIS,Met Office,17/04/2024,07 EQUIPMENT,MARKETS,Campbell Scientific Ltd,490841,101.7,428453933
BEIS,Met Office,17/04/2024,07 EQUIPMENT,MARKETS,Campbell Scientific Ltd,490841,108,428453933
BEIS,Met Office,17/04/2024,07 EQUIPMENT,MARKETS,Campbell Scientific Ltd,490841,142.2,428453933
BEIS,Met Office,17/04/2024,07 EQUIPMENT,MARKETS,Campbell Scientific Ltd,490841,216,428453933
BEIS,Met Office,17/04/2024,07 EQUIPMENT,MARKETS,Campbell Scientific Ltd,490841,234.9,428453933
BEIS,Met Office,17/04/2024,07 EQUIPMENT,MARKETS,Campbell Scientific Ltd,490841,311.4,428453933
BEIS,Met Office,17/04/2024,07 EQUIPMENT,MARKETS,Campbell Scientific Ltd,490841,432,428453933
BEIS,Met Office,17/04/2024,07 EQUIPMENT,MARKETS,Campbell Scientific Ltd,490841,484.2,428453933
BEIS,Met Office,17/04/2024,07 EQUIPMENT,MARKETS,Campbell Scientific Ltd,490841,550.35,428453933
BEIS,Met Office,17/04/2024,07 EQUIPMENT,MARKETS,Campbell Scientific Ltd,490841,1047.6,428453933
BEIS,Met Office,17/04/2024,07 EQUIPMENT,MARKETS,Campbell Scientific Ltd,490841,1148.4,428453933
BEIS,Met Office,17/04/2024,07 EQUIPMENT,MARKETS,Campbell Scientific Ltd,490841,1420.2,428453933
BEIS,Met Office,24/04/2024,03 STAFF COSTS T&S,MARKETS,CHARLIE'S TRAVEL LTD,491658,148.37,783848277
BEIS,Met Office,08/04/2024,11 SERVICES,MARKETS,CULVERWELL ASSOCIATES LTD,490650,4500,386 6119 65
BEIS,Met Office,29/04/2024,11 SERVICES,MARKETS,DECOM NORTH SEA,490231,-1320,986674743
BEIS,Met Office,29/04/2024,11 SERVICES,MARKETS,DECOM NORTH SEA,476381,1320,986674743
BEIS,Met Office,24/04/2024,11 SERVICES,MARKETS,ECMWF,25727,-1379.28,NOTVATREG
BEIS,Met Office,24/04/2024,11 SERVICES,MARKETS,ECMWF,25700,156.57,NOTVATREG
BEIS,Met Office,24/04/2024,11 SERVICES,MARKETS,ECMWF,25683,258.35,NOTVATREG
BEIS,Met Office,24/04/2024,11 SERVICES,MARKETS,ECMWF,25728,299.58,NOTVATREG
BEIS,Met Office,24/04/2024,11 SERVICES,MARKETS,ECMWF,25703,334.49,NOTVATREG
BEIS,Met Office,24/04/2024,11 SERVICES,MARKETS,ECMWF,25687,345.1,NOTVATREG
BEIS,Met Office,24/04/2024,11 SERVICES,MARKETS,ECMWF,25692,381.28,NOTVATREG
BEIS,Met Office,24/04/2024,11 SERVICES,MARKETS,ECMWF,25689,461.64,NOTVATREG
BEIS,Met Office,24/04/2024,11 SERVICES,MARKETS,ECMWF,25699,472.57,NOTVATREG
BEIS,Met Office,24/04/2024,11 SERVICES,MARKETS,ECMWF,25739,600.55,NOTVATREG
BEIS,Met Office,24/04/2024,11 SERVICES,MARKETS,ECMWF,25733,944.79,NOTVATREG
BEIS,Met Office,24/04/2024,11 SERVICES,MARKETS,ECMWF,25735,992.4,NOTVATREG
BEIS,Met Office,24/04/2024,11 SERVICES,MARKETS,ECMWF,25684,1018.78,NOTVATREG
BEIS,Met Office,24/04/2024,11 SERVICES,MARKETS,ECMWF,25734,1018.78,NOTVATREG
BEIS,Met Office,24/04/2024,11 SERVICES,MARKETS,ECMWF,25695,1279.49,NOTVATREG
BEIS,Met Office,24/04/2024,11 SERVICES,MARKETS,ECMWF,25711,1512.52,NOTVATREG
BEIS,Met Office,24/04/2024,11 SERVICES,MARKETS,ECMWF,25702,1625.88,NOTVATREG
BEIS,Met Office,24/04/2024,11 SERVICES,MARKETS,ECMWF,25723,1638.21,NOTVATREG
BEIS,Met Office,24/04/2024,11 SERVICES,MARKETS,ECMWF,25721,1686.01,NOTVATREG
BEIS,Met Office,24/04/2024,11 SERVICES,MARKETS,ECMWF,25701,1713.38,NOTVATREG
BEIS,Met Office,24/04/2024,11 SERVICES,MARKETS,ECMWF,25704,1999.6,NOTVATREG
BEIS,Met Office,24/04/2024,11 SERVICES,MARKETS,ECMWF,25696,2147.71,NOTVATREG
BEIS,Met Office,24/04/2024,11 SERVICES,MARKETS,ECMWF,25717,2519.95,NOTVATREG
BEIS,Met Office,24/04/2024,11 SERVICES,MARKETS,ECMWF,25698,2598.65,NOTVATREG
BEIS,Met Office,24/04/2024,11 SERVICES,MARKETS,ECMWF,25685,3114.47,NOTVATREG
BEIS,Met Office,24/04/2024,11 SERVICES,MARKETS,ECMWF,25732,4320.65,NOTVATREG
BEIS,Met Office,24/04/2024,11 SERVICES,MARKETS,ECMWF,25736,4394.08,NOTVATREG
BEIS,Met Office,24/04/2024,11 SERVICES,MARKETS,ECMWF,25714,4415.08,NOTVATREG
BEIS,Met Office,24/04/2024,11 SERVICES,MARKETS,ECMWF,25697,4543.44,NOTVATREG
BEIS,Met Office,24/04/2024,11 SERVICES,MARKETS,ECMWF,25719,4702.06,NOTVATREG
BEIS,Met Office,24/04/2024,11 SERVICES,MARKETS,ECMWF,25738,8603.92,NOTVATREG
BEIS,Met Office,24/04/2024,11 SERVICES,MARKETS,ECMWF,25722,12359.56,NOTVATREG
BEIS,Met Office,24/04/2024,11 SERVICES,MARKETS,ECMWF,25694,13098.33,NOTVATREG
BEIS,Met Office,24/04/2024,11 SERVICES,MARKETS,ECMWF,25740,14923.07,NOTVATREG
BEIS,Met Office,24/04/2024,11 SERVICES,MARKETS,ECMWF,25726,16097.5,NOTVATREG
BEIS,Met Office,24/04/2024,11 SERVICES,MARKETS,ECMWF,25718,16097.51,NOTVATREG
BEIS,Met Office,24/04/2024,11 SERVICES,MARKETS,ECMWF,25688,16611.52,NOTVATREG
BEIS,Met Office,24/04/2024,11 SERVICES,MARKETS,ECMWF,25729,16836.72,NOTVATREG
BEIS,Met Office,24/04/2024,11 SERVICES,MARKETS,ECMWF,25707,18567.58,NOTVATREG
BEIS,Met Office,24/04/2024,11 SERVICES,MARKETS,ECMWF,25737,20359.44,NOTVATREG
BEIS,Met Office,24/04/2024,11 SERVICES,MARKETS,ECMWF,25706,21662.53,NOTVATREG
BEIS,Met Office,24/04/2024,11 SERVICES,MARKETS,ECMWF,25731,28933.42,NOTVATREG
BEIS,Met Office,24/04/2024,11 SERVICES,MARKETS,ECMWF,25690,29769.9,NOTVATREG
BEIS,Met Office,24/04/2024,11 SERVICES,MARKETS,ECMWF,25709,29769.9,NOTVATREG
BEIS,Met Office,24/04/2024,11 SERVICES,MARKETS,ECMWF,25691,31056.78,NOTVATREG
BEIS,Met Office,24/04/2024,11 SERVICES,MARKETS,ECMWF,25708,31056.78,NOTVATREG
BEIS,Met Office,24/04/2024,11 SERVICES,MARKETS,ECMWF,25710,31056.78,NOTVATREG
BEIS,Met Office,24/04/2024,11 SERVICES,MARKETS,ECMWF,25712,31056.78,NOTVATREG
BEIS,Met Office,24/04/2024,11 SERVICES,MARKETS,ECMWF,25713,31056.78,NOTVATREG
BEIS,Met Office,24/04/2024,11 SERVICES,MARKETS,ECMWF,25716,31056.78,NOTVATREG
BEIS,Met Office,24/04/2024,11 SERVICES,MARKETS,ECMWF,25724,31056.78,NOTVATREG
BEIS,Met Office,24/04/2024,11 SERVICES,MARKETS,ECMWF,25686,35221.28,NOTVATREG
BEIS,Met Office,24/04/2024,11 SERVICES,MARKETS,ECMWF,25715,43325.07,NOTVATREG
BEIS,Met Office,24/04/2024,11 SERVICES,MARKETS,ECMWF,25720,43325.07,NOTVATREG
BEIS,Met Office,24/04/2024,11 SERVICES,MARKETS,ECMWF,25705,48150.88,NOTVATREG
BEIS,Met Office,24/04/2024,11 SERVICES,MARKETS,ECMWF,25725,48901.56,NOTVATREG
BEIS,Met Office,24/04/2024,11 SERVICES,MARKETS,ECMWF,25730,48901.56,NOTVATREG
BEIS,Met Office,24/04/2024,11 SERVICES,MARKETS,ECMWF,25693,54349.36,NOTVATREG
BEIS,Met Office,05/04/2024,12 INTERNATIONAL,MARKETS,FOXSTONES TRAINING AND LEARNING,490848,2950,-
BEIS,Met Office,04/04/2024,11 SERVICES,MARKETS,Health & Safety Laboratory,490653,25925,888810177
BEIS,Met Office,04/04/2024,11 SERVICES,MARKETS,HOPKINS VAN MIL (HVM),490649,12199.38,857628578
BEIS,Met Office,17/04/2024,08 SOFTWARE LICENCES,MARKETS,"IBL SOFTWARE ENGINEERING, SPOL S.R.O.",25682,2941.9,SK2020241883
BEIS,Met Office,03/04/2024,11 SERVICES,MARKETS,"IBL SOFTWARE ENGINEERING, SPOL S.R.O.",487047,8681.29,SK2020241883
BEIS,Met Office,04/04/2024,11 SERVICES,MARKETS,INMARSAT SOLUTIONS (CANADA) INC,490669,1892.27,766144223
BEIS,Met Office,19/04/2024,11 SERVICES,MARKETS,LHR BUSINESS SUPPORT CENTRE LTD,491511,8.41,927365404
BEIS,Met Office,23/04/2024,11 SERVICES,MARKETS,LONDON ECONOMICS LTD,491635,29688.6,769529863
BEIS,Met Office,17/04/2024,11 SERVICES,MARKETS,MCENIES GLOBAL COMMUNICATIONS LIMITED,491246,1650.13,18980736-0001
BEIS,Met Office,17/04/2024,11 SERVICES,MARKETS,MERCATOR OCEAN INTERNATIONAL,25824,30816.19,-
BEIS,Met Office,23/04/2024,12 INTERNATIONAL,MARKETS,MYACORN LTD,491514,22901.61,-
BEIS,Met Office,17/04/2024,11 SERVICES,MARKETS,NSSL GLOBAL LTD,11463,43.16,725151948
BEIS,Met Office,09/04/2024,11 SERVICES,MARKETS,PERFORMANCE CATALYST LIMITED,491048,2697.51,319498855
BEIS,Met Office,04/04/2024,11 SERVICES,MARKETS,Plymouth Marine Laboratory,490794,17995.75,927105830
BEIS,Met Office,04/04/2024,11 SERVICES,MARKETS,RAINMAKER SOLUTIONS LTD,490679,75000,-
BEIS,Met Office,10/04/2024,11 SERVICES,MARKETS,ROWE IT LTD,490844,1719.04,924964394
BEIS,Met Office,05/04/2024,11 SERVICES,MARKETS,ROWE IT LTD,490846,43320,924964394
BEIS,Met Office,04/04/2024,11 SERVICES,MARKETS,SPOKE (INTERACTIVE) LTD,490762,770,840156451
BEIS,Met Office,04/04/2024,12 INTERNATIONAL,MARKETS,SWANTECH LOGISTICS LTD,490700,325,769332401
BEIS,Met Office,04/04/2024,12 INTERNATIONAL,MARKETS,SWANTECH LOGISTICS LTD,490538,979.02,769332401
BEIS,Met Office,09/04/2024,11 SERVICES,MARKETS,SWANTECH LOGISTICS LTD,490769,4313.64,769332401
BEIS,Met Office,17/04/2024,13 MISCELLANEOUS,MARKETS,THE COPYRIGHT LICENSING AGENCY LTD,491284,12324.73,386463025
BEIS,Met Office,18/04/2024,13 MISCELLANEOUS,MARKETS,UK FLIGHT SAFETY COMMITTEE,491460,1750,-
BEIS,Met Office,17/04/2024,11 SERVICES,MARKETS,UNITED KINGDOM RESEARCH AND INNOVATION (UKRI),491340,25240.19,GB287461957
BEIS,Met Office,30/04/2024,07 EQUIPMENT,MARKETS,VAISALA LTD,491796,1630,336100011
BEIS,Met Office,10/04/2024,11 SERVICES,MARKETS,WORLDPAY (UK) LTD,490970,46.36,991280207
BEIS,Met Office,10/04/2024,11 SERVICES,MARKETS,WORLDPAY (UK) LTD,490966,49.28,991280207
BEIS,Met Office,10/04/2024,11 SERVICES,MARKETS,WORLDPAY (UK) LTD,490969,50.14,991280207
BEIS,Met Office,10/04/2024,11 SERVICES,MARKETS,WORLDPAY (UK) LTD,490965,51.51,991280207
BEIS,Met Office,10/04/2024,11 SERVICES,MARKETS,WORLDPAY (UK) LTD,490967,52.11,991280207
BEIS,Met Office,10/04/2024,11 SERVICES,MARKETS,WORLDPAY (UK) LTD,490968,55.18,991280207
BEIS,Met Office,10/04/2024,11 SERVICES,MARKETS,WORLDPAY (UK) LTD,490964,76.59,991280207
BEIS,Met Office,12/04/2024,11 SERVICES,MARKETS,WORLDPAY (UK) LTD,490971,617.27,991280207
BEIS,Met Office,11/04/2024,07 EQUIPMENT,MARKETS,XL SYSTEMS LTD,491166,3340,528507046
BEIS,Met Office,10/04/2024,11 SERVICES,OFFICE OF THE CEO,ADDLESHAW GODDARD LLP,491130,14400,100135687
BEIS,Met Office,08/04/2024,13 MISCELLANEOUS,OFFICE OF THE CEO,ASSOCIATION OF CHIEF EXECUTIVES,490940,1500,N/A
BEIS,Met Office,24/04/2024,13 MISCELLANEOUS,OFFICE OF THE CEO,MOON CONSULTING LTD T/A MOON EXECUTIVE SEARCH,491670,7000,832 0815 52
BEIS,Met Office,19/04/2024,11 SERVICES,OTHER,Government Legal Department,491519,127.6,888823066
BEIS,Met Office,26/04/2024,PAYE AND VAT,OTHER,HMRC,491757,6388695.42,-
BEIS,Met Office,23/04/2024,TRADE CREDITORS,OTHER,NATWEST COMMERCIAL CARDS DIVISION,491603,228803.64,N/A
BEIS,Met Office,22/04/2024,CYCLESCHEME,OTHER,Reward Gateway (UK) Ltd,491385,813,649 503 520
BEIS,Met Office,12/04/2024,CYCLESCHEME,OTHER,Reward Gateway (UK) Ltd,491235,5533.7,649 503 520
BEIS,Met Office,11/04/2024,11 SERVICES,PEOPLE,ASK RESEARCH PARTNERS LTD,489744,13750,438671466
BEIS,Met Office,10/04/2024,11 SERVICES,PEOPLE,BRIGHTCOVE INC,490920,97257,TAX 20-1579162
BEIS,Met Office,04/04/2024,08 SOFTWARE LICENCES,PEOPLE,CATALYST IT,490690,2270.82,978169262
BEIS,Met Office,22/04/2024,11 SERVICES,PEOPLE,CIPHR,491596,4975,242661124
BEIS,Met Office,05/04/2024,11 SERVICES,PEOPLE,CIVICA UK LIMITED,490855,7503.5,391171065
BEIS,Met Office,19/04/2024,11 SERVICES,PEOPLE,ESCOTT HUNT LTD,491513,380,815727127
BEIS,Met Office,04/04/2024,11 SERVICES,PEOPLE,FLOW CREATIVE,490642,1500,218318907
BEIS,Met Office,04/04/2024,11 SERVICES,PEOPLE,FLOW CREATIVE,490651,2500,218318907
BEIS,Met Office,24/04/2024,13 MISCELLANEOUS,PEOPLE,GTI FUTURES LIMITED,491564,895,GB 882 4583 89
BEIS,Met Office,05/04/2024,04 CONTRACTORS,PEOPLE,MATRIX SCM LIMITED,490838,181866.04,249 5734 68
BEIS,Met Office,12/04/2024,04 CONTRACTORS,PEOPLE,MATRIX SCM LIMITED,491248,184345.84,249 5734 68
BEIS,Met Office,18/04/2024,04 CONTRACTORS,PEOPLE,MATRIX SCM LIMITED,491503,205042.73,249 5734 68
BEIS,Met Office,26/04/2024,04 CONTRACTORS,PEOPLE,MATRIX SCM LIMITED,491737,213579.76,249 5734 68
BEIS,Met Office,17/04/2024,11 SERVICES,PEOPLE,PLURALSIGHT,11461,1861.16,EU826020045
BEIS,Met Office,05/04/2024,11 SERVICES,PEOPLE,REDACTED � PERSONAL DATA,490923,825,143043312
BEIS,Met Office,09/04/2024,11 SERVICES,PEOPLE,REDACTED � PERSONAL DATA,490930,864,143043312
BEIS,Met Office,10/04/2024,11 SERVICES,PEOPLE,REDACTED � PERSONAL DATA,490929,4284,143043312
BEIS,Met Office,11/04/2024,11 SERVICES,PEOPLE,RESTORE RECORDS MANAGEMENT,491157,13.89,843 863011
BEIS,Met Office,08/04/2024,13 MISCELLANEOUS,PEOPLE,Reward Gateway (UK) Ltd,490957,7436.5,649 503 520
BEIS,Met Office,05/04/2024,13 MISCELLANEOUS,PEOPLE,Reward Gateway (UK) Ltd,490750,62990,649 503 520
BEIS,Met Office,08/04/2024,11 SERVICES,PEOPLE,SPOCE,490116,-11135,619 8641 07
BEIS,Met Office,08/04/2024,11 SERVICES,PEOPLE,SPOCE,481630,11135,619 8641 07
BEIS,Met Office,05/04/2024,11 SERVICES,PEOPLE,TOTAL CONFLICT MANAGEMENT LTD,490631,5000,786749261
BEIS,Met Office,15/04/2024,11 SERVICES,PEOPLE,TP HEALTH LTD,491281,1105,883064608
BEIS,Met Office,22/04/2024,11 SERVICES,PEOPLE,TP HEALTH LTD,491585,1105,883064608
BEIS,Met Office,12/04/2024,11 SERVICES,PEOPLE,TP HEALTH LTD,491125,2223,883064608
BEIS,Met Office,08/04/2024,11 SERVICES,PEOPLE,TP HEALTH LTD,490942,3452,883064608
BEIS,Met Office,04/04/2024,13 MISCELLANEOUS,PEOPLE,TRIBEPAD LIMITED,490573,118794,GB931979630
BEIS,Met Office,09/04/2024,13 MISCELLANEOUS,PEOPLE,YOTI LTD,490975,40.5,GB199947617
BEIS,Met Office,10/04/2024,08 SOFTWARE LICENCES,PROGRAMMES,ACTIVESTATE SOFTWARE INC.,11479,59484.58,-
BEIS,Met Office,05/04/2024,06 ACCOMMODATION,PROGRAMMES,ANGLIAN WATER BUSINESS NATIONAL LTD,490766,35.15,51406002
BEIS,Met Office,08/04/2024,11 SERVICES,PROGRAMMES,BAE SYSTEMS APPLIED INTELLIGENCE LIMITED,490919,1237.58,GB641407169
BEIS,Met Office,10/04/2024,11 SERVICES,PROGRAMMES,BAE SYSTEMS APPLIED INTELLIGENCE LIMITED,490918,22728,GB641407169
BEIS,Met Office,10/04/2024,11 SERVICES,PROGRAMMES,BAE SYSTEMS APPLIED INTELLIGENCE LIMITED,491076,90281.43,GB641407169
BEIS,Met Office,15/04/2024,11 SERVICES,PROGRAMMES,BJSS LIMITED,491150,8750,613295452
BEIS,Met Office,12/04/2024,11 SERVICES,PROGRAMMES,BJSS LIMITED,491149,15000,613295452
BEIS,Met Office,15/04/2024,11 SERVICES,PROGRAMMES,BJSS LIMITED,491151,24175,613295452
BEIS,Met Office,15/04/2024,11 SERVICES,PROGRAMMES,BJSS LIMITED,491147,60110,613295452
BEIS,Met Office,15/04/2024,11 SERVICES,PROGRAMMES,BJSS LIMITED,491146,61768.75,613295452
BEIS,Met Office,10/04/2024,11 SERVICES,PROGRAMMES,BJSS LIMITED,491153,85087.5,613295452
BEIS,Met Office,15/04/2024,11 SERVICES,PROGRAMMES,BJSS LIMITED,491146,102631.25,613295452
BEIS,Met Office,19/04/2024,11 SERVICES,PROGRAMMES,British Red Cross Society,491539,2309.87,706926227
BEIS,Met Office,22/04/2024,11 SERVICES,PROGRAMMES,CABINET OFFICE - COF LEAD ACCOUNT,491458,940,-
BEIS,Met Office,25/04/2024,11 SERVICES,PROGRAMMES,Cgi It Uk Limited,491686,28588,232615194
BEIS,Met Office,25/04/2024,11 SERVICES,PROGRAMMES,Cgi It Uk Limited,491688,37693,232615194
BEIS,Met Office,25/04/2024,11 SERVICES,PROGRAMMES,Cgi It Uk Limited,491687,79239,232615194
BEIS,Met Office,24/04/2024,PLANT AND EQUIPMENT,PROGRAMMES,CPI SAT ORBITAL SYSTEMS,11480,634.5,-
BEIS,Met Office,24/04/2024,PLANT AND EQUIPMENT,PROGRAMMES,CPI SAT ORBITAL SYSTEMS,11480,1387.97,-
BEIS,Met Office,24/04/2024,PLANT AND EQUIPMENT,PROGRAMMES,CPI SAT ORBITAL SYSTEMS,11480,1387.97,-
BEIS,Met Office,24/04/2024,PLANT AND EQUIPMENT,PROGRAMMES,CPI SAT ORBITAL SYSTEMS,11480,6341.06,-
BEIS,Met Office,09/04/2024,13 MISCELLANEOUS,PROGRAMMES,DWYFOR COFFEE COMPANY LTD,490644,-23.82,559811116
BEIS,Met Office,29/04/2024,11 SERVICES,PROGRAMMES,FCDO,491769,2574.31,888813560
BEIS,Met Office,08/04/2024,11 SERVICES,PROGRAMMES,FCDO,490486,7335.86,888813560
BEIS,Met Office,15/04/2024,06 ACCOMMODATION,PROGRAMMES,HIGHLANDS & ISLANDS AIRPORTS LTD.,491328,265.74,945667772
BEIS,Met Office,24/04/2024,13 MISCELLANEOUS,PROGRAMMES,"IBL SOFTWARE ENGINEERING, SPOL S.R.O.",486271,12214.17,SK2020241883
BEIS,Met Office,17/04/2024,11 SERVICES,PROGRAMMES,"IBL SOFTWARE ENGINEERING, SPOL S.R.O.",490546,152572.98,SK2020241883
BEIS,Met Office,17/04/2024,11 SERVICES,PROGRAMMES,"IBL SOFTWARE ENGINEERING, SPOL S.R.O.",490547,249299,SK2020241883
BEIS,Met Office,04/04/2024,11 SERVICES,PROGRAMMES,Ibm United Kingdom Ltd,490774,13440.5,107328000
BEIS,Met Office,11/04/2024,11 SERVICES,PROGRAMMES,Ibm United Kingdom Ltd,490789,165299.82,107328000
BEIS,Met Office,03/04/2024,11 SERVICES,PROGRAMMES,"K F LEWIN CONSULTING, LLC",11439,11113.19,-
BEIS,Met Office,24/04/2024,11 SERVICES,PROGRAMMES,LAFOSSE ASSOCIATES,491655,29394,GB 360026537
BEIS,Met Office,04/04/2024,11 SERVICES,PROGRAMMES,LUTRA CONSULTING,490203,5250,142463822
BEIS,Met Office,04/04/2024,11 SERVICES,PROGRAMMES,LUTRA CONSULTING,490204,15750,142463822
BEIS,Met Office,10/04/2024,11 SERVICES,PROGRAMMES,MALI METEO,490952,45000,-
BEIS,Met Office,08/04/2024,11 SERVICES,PROGRAMMES,Microsoft Ltd,490778,124083.2,724594615
BEIS,Met Office,02/04/2024,11 SERVICES,PROGRAMMES,MONGODB LTD,490614,-828.75,IE9793087U
BEIS,Met Office,02/04/2024,11 SERVICES,PROGRAMMES,MONGODB LTD,480448,828.75,IE9793087U
BEIS,Met Office,24/04/2024,11 SERVICES,PROGRAMMES,NORWEGIAN REFUGEE COUNCIL,490542,33276.6,-
BEIS,Met Office,10/04/2024,11 SERVICES,PROGRAMMES,RAINMAKER SOLUTIONS LTD,490847,-20000,-
BEIS,Met Office,04/04/2024,11 SERVICES,PROGRAMMES,RAINMAKER SOLUTIONS LTD,490662,-15000,-
BEIS,Met Office,04/04/2024,11 SERVICES,PROGRAMMES,RAINMAKER SOLUTIONS LTD,490662,-10000,-
BEIS,Met Office,10/04/2024,11 SERVICES,PROGRAMMES,RAINMAKER SOLUTIONS LTD,490847,-264.8,-
BEIS,Met Office,10/04/2024,11 SERVICES,PROGRAMMES,RAINMAKER SOLUTIONS LTD,487084,264.8,-
BEIS,Met Office,04/04/2024,11 SERVICES,PROGRAMMES,RAINMAKER SOLUTIONS LTD,490490,1056.45,-
BEIS,Met Office,10/04/2024,11 SERVICES,PROGRAMMES,RAINMAKER SOLUTIONS LTD,490852,1059.03,-
BEIS,Met Office,04/04/2024,11 SERVICES,PROGRAMMES,RAINMAKER SOLUTIONS LTD,490673,10000,-
BEIS,Met Office,04/04/2024,11 SERVICES,PROGRAMMES,RAINMAKER SOLUTIONS LTD,490490,15000,-
BEIS,Met Office,04/04/2024,11 SERVICES,PROGRAMMES,RAINMAKER SOLUTIONS LTD,490490,15000,-
BEIS,Met Office,04/04/2024,11 SERVICES,PROGRAMMES,RAINMAKER SOLUTIONS LTD,490673,15000,-
BEIS,Met Office,10/04/2024,11 SERVICES,PROGRAMMES,RAINMAKER SOLUTIONS LTD,487084,20000,-
BEIS,Met Office,10/04/2024,11 SERVICES,PROGRAMMES,RAINMAKER SOLUTIONS LTD,490852,20000,-
BEIS,Met Office,24/04/2024,11 SERVICES,PROGRAMMES,Red Cross Red Crescent Climate Centre,490636,28474.11,N/A
BEIS,Met Office,22/04/2024,11 SERVICES,PROGRAMMES,Red Oak Consulting LLP,491408,-16480,807766990
BEIS,Met Office,22/04/2024,11 SERVICES,PROGRAMMES,Red Oak Consulting LLP,490183,16480,807766990
BEIS,Met Office,22/04/2024,11 SERVICES,PROGRAMMES,Red Oak Consulting LLP,491409,20600,807766990
BEIS,Met Office,10/04/2024,11 SERVICES,PROGRAMMES,ROBIN�S TRADING COMPANY LTD,491075,2100,384909158
BEIS,Met Office,10/04/2024,11 SERVICES,PROGRAMMES,ROBIN�S TRADING COMPANY LTD,491075,3000,384909158
BEIS,Met Office,04/04/2024,11 SERVICES,PROGRAMMES,ROTHAMSTED RESEARCH LIMITED,490641,14079,197420151
BEIS,Met Office,04/04/2024,11 SERVICES,PROGRAMMES,ROTHAMSTED RESEARCH LIMITED,490641,25000,197420151
BEIS,Met Office,10/04/2024,11 SERVICES,PROGRAMMES,ROWE IT LTD,490844,859.52,924964394
BEIS,Met Office,10/04/2024,11 SERVICES,PROGRAMMES,ROWE IT LTD,490844,3438.08,924964394
BEIS,Met Office,10/04/2024,11 SERVICES,PROGRAMMES,ROWE IT LTD,490844,4297.6,924964394
BEIS,Met Office,10/04/2024,11 SERVICES,PROGRAMMES,ROWE IT LTD,490844,6876.16,924964394
BEIS,Met Office,10/04/2024,11 SERVICES,PROGRAMMES,ROWE IT LTD,490844,9454.72,924964394
BEIS,Met Office,10/04/2024,11 SERVICES,PROGRAMMES,ROWE IT LTD,490844,10314.24,924964394
BEIS,Met Office,23/04/2024,11 SERVICES,PROGRAMMES,ROWE IT LTD,491623,12000,924964394
BEIS,Met Office,10/04/2024,11 SERVICES,PROGRAMMES,ROWE IT LTD,490689,13270.56,924964394
BEIS,Met Office,10/04/2024,11 SERVICES,PROGRAMMES,ROWE IT LTD,490844,23207.04,924964394
BEIS,Met Office,10/04/2024,11 SERVICES,PROGRAMMES,ROWE IT LTD,490844,25786.1,924964394
BEIS,Met Office,05/04/2024,11 SERVICES,PROGRAMMES,ROWE IT LTD,490845,113565,924964394
BEIS,Met Office,19/04/2024,06 ACCOMMODATION,PROGRAMMES,South West Water Ltd,491454,934.49,236873674
BEIS,Met Office,24/04/2024,11 SERVICES,PROGRAMMES,SPREP,11508,154000,-
BEIS,Met Office,04/04/2024,11 SERVICES,PROGRAMMES,THAT LITTLE AGENCY LIMITED,490692,17300,243725019
BEIS,Met Office,02/04/2024,11 SERVICES,PROGRAMMES,THE BRICK PEOPLE,474347,-35,-
BEIS,Met Office,17/04/2024,11 SERVICES,PROGRAMMES,UCAR INCOMING PAYMENTS,11492,4526.17,-
BEIS,Met Office,03/04/2024,11 SERVICES,PROGRAMMES,UCAR INCOMING PAYMENTS,11445,11507.83,-
BEIS,Met Office,29/04/2024,11 SERVICES,PROGRAMMES,University College London,491226,53605.68,524371168
BEIS,Met Office,17/04/2024,11 SERVICES,PROGRAMMES,University of Edinburgh,491339,17000,592950700
BEIS,Met Office,08/04/2024,11 SERVICES,PROGRAMMES,University Of Exeter,490933,-8560.54,142047795
BEIS,Met Office,08/04/2024,11 SERVICES,PROGRAMMES,University Of Exeter,490487,8560.54,142047795
BEIS,Met Office,24/04/2024,11 SERVICES,PROGRAMMES,University Of Exeter,490635,32823,142047795
BEIS,Met Office,16/04/2024,11 SERVICES,PROGRAMMES,University Of Exeter,491268,49249.25,142047795
BEIS,Met Office,08/04/2024,11 SERVICES,PROGRAMMES,University Of Exeter,490763,73873.2,142047795
BEIS,Met Office,04/04/2024,11 SERVICES,PROGRAMMES,University Of Exeter,490643,165756,142047795
BEIS,Met Office,09/04/2024,11 SERVICES,PROGRAMMES,University Of Leeds,491046,12500,613451470
BEIS,Met Office,17/04/2024,11 SERVICES,PROGRAMMES,University Of Leeds,491314,230941.28,613451470
BEIS,Met Office,22/04/2024,11 SERVICES,PROGRAMMES,University Of Oxford,491584,20000,125506730
BEIS,Met Office,04/04/2024,11 SERVICES,PROGRAMMES,University Of Oxford,490462,49042.36,125506730
BEIS,Met Office,09/04/2024,11 SERVICES,PROGRAMMES,University Of Reading,490270,24655.2,200012659
BEIS,Met Office,15/04/2024,11 SERVICES,PROGRAMMES,University Of Reading,491316,50000,200012659
BEIS,Met Office,09/04/2024,11 SERVICES,PROGRAMMES,University Of Reading,490271,70857.67,200012659
BEIS,Met Office,25/04/2024,11 SERVICES,PROGRAMMES,University Of Reading,491685,284880,200012659
BEIS,Met Office,03/04/2024,PLANT AND EQUIPMENT,PROGRAMMES,Vaisala Oyj,25637,54671.98,FI01244162
BEIS,Met Office,03/04/2024,PLANT AND EQUIPMENT,PROGRAMMES,Vaisala Oyj,25637,257470.84,FI01244162
BEIS,Met Office,25/04/2024,11 SERVICES,PROGRAMMES,WARWICK ECONOMICS & DEVELOPMENT LTD.,491436,-9450,116732721
BEIS,Met Office,25/04/2024,11 SERVICES,PROGRAMMES,WARWICK ECONOMICS & DEVELOPMENT LTD.,490645,0,116732721
BEIS,Met Office,25/04/2024,11 SERVICES,PROGRAMMES,WARWICK ECONOMICS & DEVELOPMENT LTD.,491436,0,116732721
BEIS,Met Office,25/04/2024,11 SERVICES,PROGRAMMES,WARWICK ECONOMICS & DEVELOPMENT LTD.,491604,0,116732721
BEIS,Met Office,25/04/2024,11 SERVICES,PROGRAMMES,WARWICK ECONOMICS & DEVELOPMENT LTD.,490645,9450,116732721
BEIS,Met Office,25/04/2024,11 SERVICES,PROGRAMMES,WARWICK ECONOMICS & DEVELOPMENT LTD.,491604,9450,116732721
BEIS,Met Office,05/04/2024,11 SERVICES,PROGRAMMES,WESTEXE GROUP,490680,60,913 4460 43
BEIS,Met Office,16/04/2024,13 MISCELLANEOUS,SCIENCE,AB MULTIMEDIA LTD,491245,575,849333502
BEIS,Met Office,17/04/2024,13 MISCELLANEOUS,SCIENCE,AVIVA INSURANCE UK LIMITED,491403,150,105 437 300
BEIS,Met Office,24/04/2024,11 SERVICES,SCIENCE,Bureau Of Meteorology,490743,4765.96,-
BEIS,Met Office,24/04/2024,11 SERVICES,SCIENCE,Bureau Of Meteorology,490819,5787.18,-
BEIS,Met Office,24/04/2024,11 SERVICES,SCIENCE,Bureau Of Meteorology,491229,8643.95,-
BEIS,Met Office,08/04/2024,11 SERVICES,SCIENCE,DBS FINANCE RECEIPTS CTS,490842,370,888805068
BEIS,Met Office,19/04/2024,11 SERVICES,SCIENCE,ESCOTT HUNT LTD,491513,570,815727127
BEIS,Met Office,11/04/2024,11 SERVICES,SCIENCE,Esri (Uk) Ltd,491232,-6165,787430791
BEIS,Met Office,10/04/2024,11 SERVICES,SCIENCE,EXETER RUGBY CLUB LTD,491120,835.42,918551313
BEIS,Met Office,25/04/2024,07 EQUIPMENT,SCIENCE,LEARNING POOL LIMITED,491713,4000,882389379
BEIS,Met Office,15/04/2024,11 SERVICES,SCIENCE,Plymouth Marine Laboratory,491252,890.3,927105830
BEIS,Met Office,04/04/2024,07 EQUIPMENT,SCIENCE,SCIENCE & TECHNOLOGY FACILITIES COUNCIL,490705,17914,287461957
BEIS,Met Office,18/04/2024,11 SERVICES,SCIENCE,University Of Bristol,491346,12500,991261800
BEIS,Met Office,17/04/2024,13 MISCELLANEOUS,SCIENCE,University Of East Anglia,491374,250,595183505
BEIS,Met Office,18/04/2024,11 SERVICES,SCIENCE,University Of Exeter,491382,6250,142047795
BEIS,Met Office,18/04/2024,11 SERVICES,SCIENCE,University Of Exeter,491383,6250,142047795
BEIS,Met Office,05/04/2024,11 SERVICES,SCIENCE,University Of Exeter,490682,87900,142047795
BEIS,Met Office,10/04/2024,11 SERVICES,SCIENCE,University Of Leeds,491124,3587.49,613451470
BEIS,Met Office,23/04/2024,11 SERVICES,SCIENCE,University Of Leeds,491630,13105.96,613451470
BEIS,Met Office,18/04/2024,11 SERVICES,SCIENCE,University Of Oxford,490744,12500,125506730
BEIS,Met Office,16/04/2024,11 SERVICES,SCIENCE,University Of Reading,490320,12500,200012659
BEIS,Met Office,16/04/2024,11 SERVICES,SCIENCE,University Of Reading,490320,12500,200012659
BEIS,Met Office,23/04/2024,11 SERVICES,SCIENCE,University Of Southampton,491627,4000,568630414
BEIS,Met Office,17/04/2024,11 SERVICES,SERVICES,ACTIVE LEARNING TEAM LTD,491440,1411.33,GB454401319
BEIS,Met Office,05/04/2024,11 SERVICES,SERVICES,ADAM PHONES LTD,490839,155,538877093
BEIS,Met Office,10/04/2024,STOCK,SERVICES,AFT MICROWAVE GMBH,25654,0,-
BEIS,Met Office,10/04/2024,11 SERVICES,SERVICES,AFT MICROWAVE GMBH,25654,320.75,-
BEIS,Met Office,10/04/2024,TRADE CREDITORS,SERVICES,AFT MICROWAVE GMBH,25654,11441.33,-
BEIS,Met Office,18/04/2024,03 STAFF COSTS T&S,SERVICES,AIRPORT CAR RENTALS LTD,491410,478,-
BEIS,Met Office,18/04/2024,03 STAFF COSTS T&S,SERVICES,AIRPORT CAR RENTALS LTD,491411,478,-
BEIS,Met Office,18/04/2024,03 STAFF COSTS T&S,SERVICES,AIRPORT CAR RENTALS LTD,491412,478,-
BEIS,Met Office,09/04/2024,11 SERVICES,SERVICES,APPLIED SATELLITE TECHNOLOGY SYSTEMS LTD,491050,33.42,720108683
BEIS,Met Office,09/04/2024,11 SERVICES,SERVICES,APPLIED SATELLITE TECHNOLOGY SYSTEMS LTD,491049,66.83,720108683
BEIS,Met Office,09/04/2024,11 SERVICES,SERVICES,APPLIED SATELLITE TECHNOLOGY SYSTEMS LTD,491052,66.83,720108683
BEIS,Met Office,04/04/2024,07 EQUIPMENT,SERVICES,ARNOLD CLARK FINANCE LIMITED,490712,1483.32,GB334331879
BEIS,Met Office,24/04/2024,13 MISCELLANEOUS,SERVICES,ARTHUR J. GALLAGHER INSURANCE BROKERS LIMITED,491668,15414.56,GB484746209
BEIS,Met Office,24/04/2024,03 STAFF COSTS T&S,SERVICES,AVIS BUDGET PAYLESS,25679,915.54,-
BEIS,Met Office,17/04/2024,13 MISCELLANEOUS,SERVICES,AVIVA INSURANCE UK LIMITED,491403,64.34,105 437 300
BEIS,Met Office,24/04/2024,13 MISCELLANEOUS,SERVICES,BANNER GROUP LIMITED,491651,20.74,GB391085740
BEIS,Met Office,10/04/2024,11 SERVICES,SERVICES,BENTLEY TELECOM LTD (was Bentley Walker),491117,-245.84,107995930
BEIS,Met Office,22/04/2024,11 SERVICES,SERVICES,BENTLEY TELECOM LTD (was Bentley Walker),491450,87.5,107995930
BEIS,Met Office,10/04/2024,11 SERVICES,SERVICES,BENTLEY TELECOM LTD (was Bentley Walker),491116,525,107995930
BEIS,Met Office,05/04/2024,11 SERVICES,SERVICES,Boc Ltd,490773,13870.35,226556555
BEIS,Met Office,19/04/2024,07 EQUIPMENT,SERVICES,CABINET OFFICE - COF LEAD ACCOUNT,491496,2616,-
BEIS,Met Office,19/04/2024,07 EQUIPMENT,SERVICES,CABINET OFFICE - COF LEAD ACCOUNT,491496,15496,-
BEIS,Met Office,19/04/2024,07 EQUIPMENT,SERVICES,CABINET OFFICE - COF LEAD ACCOUNT,491496,20286,-
BEIS,Met Office,08/04/2024,STOCK,SERVICES,Campbell Scientific Ltd,490840,0,428453933
BEIS,Met Office,08/04/2024,TRADE CREDITORS,SERVICES,Campbell Scientific Ltd,490840,14643.9,428453933
BEIS,Met Office,04/04/2024,03 STAFF COSTS T&S,SERVICES,CHARLIE'S TRAVEL LTD,490752,535,783848277
BEIS,Met Office,30/04/2024,08 SOFTWARE LICENCES,SERVICES,CIVICA UK LIMITED,491810,11381.25,391171065
BEIS,Met Office,15/04/2024,11 SERVICES,SERVICES,CLOUDREACH EUROPE LIMITED,491251,5260.25,978187168
BEIS,Met Office,15/04/2024,11 SERVICES,SERVICES,CLOUDREACH EUROPE LIMITED,491249,7300,978187168
BEIS,Met Office,10/04/2024,11 SERVICES,SERVICES,COLLECTE LOCALISATION SATELLITES (C.L.S.),25658,368.56,FR95338034390
BEIS,Met Office,10/04/2024,13 MISCELLANEOUS,SERVICES,COLLECTE LOCALISATION SATELLITES (C.L.S.),25656,444.18,FR95338034390
BEIS,Met Office,10/04/2024,11 SERVICES,SERVICES,COLLECTE LOCALISATION SATELLITES (C.L.S.),25655,2776.78,FR95338034390
BEIS,Met Office,10/04/2024,11 SERVICES,SERVICES,COLLECTE LOCALISATION SATELLITES (C.L.S.),25657,11850.17,FR95338034390
BEIS,Met Office,05/04/2024,11 SERVICES,SERVICES,COMPUTACENTER (UK) LTD,490808,16200,490334648
BEIS,Met Office,10/04/2024,03 STAFF COSTS T&S,SERVICES,DBS FINANCE RECEIPTS CTS,489565,2449,888805068
BEIS,Met Office,10/04/2024,10 EQUIPMENT MAINTENANCE,SERVICES,DEUTSCHE WINDGUARD WIND TUNNEL SERVICES GMBH,25811,22.64,DE225152482
BEIS,Met Office,10/04/2024,10 EQUIPMENT MAINTENANCE,SERVICES,DEUTSCHE WINDGUARD WIND TUNNEL SERVICES GMBH,25811,42.8,DE225152482
BEIS,Met Office,10/04/2024,10 EQUIPMENT MAINTENANCE,SERVICES,DEUTSCHE WINDGUARD WIND TUNNEL SERVICES GMBH,25811,2426.78,DE225152482
BEIS,Met Office,08/04/2024,11 SERVICES,SERVICES,DOT SOFTWARE LTD,490822,4815,701022805
BEIS,Met Office,29/04/2024,11 SERVICES,SERVICES,EAST RIDING OF YORKSHIRE COUNCIL IHA,490288,-1686.4,647471123
BEIS,Met Office,10/04/2024,03 STAFF COSTS T&S,SERVICES,FALKLAND ISLAND COMPANY LTD,491154,800,N/A
BEIS,Met Office,10/04/2024,03 STAFF COSTS T&S,SERVICES,FALKLAND ISLAND COMPANY LTD,491155,800,N/A
BEIS,Met Office,10/04/2024,03 STAFF COSTS T&S,SERVICES,FALKLAND ISLAND COMPANY LTD,491156,800,N/A
BEIS,Met Office,22/04/2024,PLANT AND EQUIPMENT,SERVICES,FLUKE UK LTD,491517,24144,625938805
BEIS,Met Office,04/04/2024,11 SERVICES,SERVICES,FLYFORM LTD,490633,11856.2,237333808
BEIS,Met Office,26/04/2024,11 SERVICES,SERVICES,GAMMA TELECOM LTD,491213,2232.78,823820344
BEIS,Met Office,26/04/2024,11 SERVICES,SERVICES,GAMMA TELECOM LTD,491213,2338.58,823820344
BEIS,Met Office,30/04/2024,07 EQUIPMENT,SERVICES,GROOVE ASSOCIATES LTD,491689,18,108381578
BEIS,Met Office,30/04/2024,07 EQUIPMENT,SERVICES,GROOVE ASSOCIATES LTD,491689,1519.2,108381578
BEIS,Met Office,23/04/2024,11 SERVICES,SERVICES,GROUND CONTROL UK TECHNOLOGIES LTD,491598,86.1,GB277698137
BEIS,Met Office,23/04/2024,11 SERVICES,SERVICES,GROUND CONTROL UK TECHNOLOGIES LTD,491598,260.45,GB277698137
BEIS,Met Office,23/04/2024,11 SERVICES,SERVICES,GROUND CONTROL UK TECHNOLOGIES LTD,491598,690.02,GB277698137
BEIS,Met Office,23/04/2024,11 SERVICES,SERVICES,GROUND CONTROL UK TECHNOLOGIES LTD,491598,1337.1,GB277698137
BEIS,Met Office,23/04/2024,11 SERVICES,SERVICES,GROUND CONTROL UK TECHNOLOGIES LTD,491598,1973.43,GB277698137
BEIS,Met Office,23/04/2024,11 SERVICES,SERVICES,GROUND CONTROL UK TECHNOLOGIES LTD,491598,2242.24,GB277698137
BEIS,Met Office,23/04/2024,11 SERVICES,SERVICES,GROUND CONTROL UK TECHNOLOGIES LTD,491598,3450.02,GB277698137
BEIS,Met Office,04/04/2024,07 EQUIPMENT,SERVICES,GRS BUILDING SERVICES SOUTH-WEST,490668,3500,-
BEIS,Met Office,19/04/2024,03 STAFF COSTS T&S,SERVICES,HCR LTD,491462,-1608.54,733 7205 46
BEIS,Met Office,05/04/2024,03 STAFF COSTS T&S,SERVICES,HCR LTD,490938,-11.23,733 7205 46
BEIS,Met Office,19/04/2024,03 STAFF COSTS T&S,SERVICES,HCR LTD,491463,0,733 7205 46
BEIS,Met Office,05/04/2024,03 STAFF COSTS T&S,SERVICES,HCR LTD,490937,75,733 7205 46
BEIS,Met Office,05/04/2024,03 STAFF COSTS T&S,SERVICES,HCR LTD,490934,448.78,733 7205 46
BEIS,Met Office,05/04/2024,03 STAFF COSTS T&S,SERVICES,HCR LTD,490936,680.91,733 7205 46
BEIS,Met Office,23/04/2024,03 STAFF COSTS T&S,SERVICES,HCR LTD,491465,770,733 7205 46
BEIS,Met Office,05/04/2024,03 STAFF COSTS T&S,SERVICES,HCR LTD,490935,1514.04,733 7205 46
BEIS,Met Office,19/04/2024,03 STAFF COSTS T&S,SERVICES,HCR LTD,491463,2850,733 7205 46
BEIS,Met Office,22/04/2024,03 STAFF COSTS T&S,SERVICES,HCR LTD,491464,15401.68,733 7205 46
BEIS,Met Office,04/04/2024,03 STAFF COSTS T&S,SERVICES,HITACHI CAPITAL VEHICLE SOLUTIONS,490745,4781.2,GB 823 8248 22
BEIS,Met Office,04/04/2024,11 SERVICES,SERVICES,INMARSAT SOLUTIONS (CANADA) INC,490670,43.55,766144223
BEIS,Met Office,04/04/2024,11 SERVICES,SERVICES,INMARSAT SOLUTIONS (CANADA) INC,490671,43.55,766144223
BEIS,Met Office,04/04/2024,11 SERVICES,SERVICES,INMARSAT SOLUTIONS (CANADA) INC,490672,87.1,766144223
BEIS,Met Office,24/04/2024,11 SERVICES,SERVICES,LEX AUTOLEASE LTD,491675,5934.12,244155576
BEIS,Met Office,17/04/2024,11 SERVICES,SERVICES,LHR BUSINESS SUPPORT CENTRE LTD,491347,21.44,927365404
BEIS,Met Office,15/04/2024,11 SERVICES,SERVICES,LINKWAVE TECHNOLOGIES LTD,491168,13012.74,715940432
BEIS,Met Office,10/04/2024,11 SERVICES,SERVICES,MADE TECH,491044,24927.51,938565184
BEIS,Met Office,10/04/2024,11 SERVICES,SERVICES,MADE TECH,491044,258677.85,938565184
BEIS,Met Office,05/04/2024,06 ACCOMMODATION,SERVICES,MAPP (PROPERTY MANAGEMENT) LTD,490646,4527,725900735
BEIS,Met Office,19/04/2024,08 SOFTWARE LICENCES,SERVICES,MERKLE ONE,491543,8022.92,GB478022835
BEIS,Met Office,12/04/2024,STOCK,SERVICES,Metspec Ltd,491041,0,738825202
BEIS,Met Office,12/04/2024,STOCK,SERVICES,Metspec Ltd,491042,0,738825202
BEIS,Met Office,12/04/2024,11 SERVICES,SERVICES,Metspec Ltd,491042,260,738825202
BEIS,Met Office,12/04/2024,11 SERVICES,SERVICES,Metspec Ltd,491041,270,738825202
BEIS,Met Office,12/04/2024,TRADE CREDITORS,SERVICES,Metspec Ltd,491042,10128,738825202
BEIS,Met Office,12/04/2024,TRADE CREDITORS,SERVICES,Metspec Ltd,491041,16980,738825202
BEIS,Met Office,05/04/2024,06 ACCOMMODATION,SERVICES,MORAY COUNCIL,490767,124.15,663755506
BEIS,Met Office,24/04/2024,07 EQUIPMENT,SERVICES,NKE ELECTRONICS,25681,1449.89,FR58538107483
BEIS,Met Office,24/04/2024,07 EQUIPMENT,SERVICES,NKE ELECTRONICS,25681,58201.43,FR58538107483
BEIS,Met Office,15/04/2024,06 ACCOMMODATION,SERVICES,NORTHWOOD OFFICERS� MESS,491272,11.16,223 6434 83
BEIS,Met Office,15/04/2024,06 ACCOMMODATION,SERVICES,NORTHWOOD OFFICERS� MESS,491272,283.65,223 6434 83
BEIS,Met Office,17/04/2024,11 SERVICES,SERVICES,NSSL GLOBAL LTD,11464,54.93,725151948
BEIS,Met Office,17/04/2024,11 SERVICES,SERVICES,NSSL GLOBAL LTD,11462,143.73,725151948
BEIS,Met Office,10/04/2024,13 MISCELLANEOUS,SERVICES,Parcelforce,490805,10.06,GB 243 1700 02
BEIS,Met Office,04/04/2024,13 MISCELLANEOUS,SERVICES,PETERS & MAY GLOBAL LOGISTICS LTD,490639,100,995183276
BEIS,Met Office,30/04/2024,07 EQUIPMENT,SERVICES,PLANET OCEAN LTD,491739,145,834477212
BEIS,Met Office,30/04/2024,07 EQUIPMENT,SERVICES,PLANET OCEAN LTD,491739,380,834477212
BEIS,Met Office,30/04/2024,07 EQUIPMENT,SERVICES,PLANET OCEAN LTD,491739,8789.12,834477212
BEIS,Met Office,08/04/2024,07 EQUIPMENT,SERVICES,QUASAR MICROWAVE TECHNOLOGY LTD,490691,350,209385203
BEIS,Met Office,08/04/2024,07 EQUIPMENT,SERVICES,QUASAR MICROWAVE TECHNOLOGY LTD,490691,9457.03,209385203
BEIS,Met Office,30/04/2024,07 EQUIPMENT,SERVICES,R S Aqua Ltd,491760,10840,370059760
BEIS,Met Office,30/04/2024,10 EQUIPMENT MAINTENANCE,SERVICES,RAISE TELECOMS LTD,491754,4761.9,166016521
BEIS,Met Office,24/04/2024,10 EQUIPMENT MAINTENANCE,SERVICES,RAISE TELECOMS LTD,491631,21983,166016521
BEIS,Met Office,30/04/2024,10 EQUIPMENT MAINTENANCE,SERVICES,RAISE TELECOMS LTD,491754,21983,166016521
BEIS,Met Office,24/04/2024,11 SERVICES,SERVICES,REDACTED � PERSONAL DATA,491634,130.24,-
BEIS,Met Office,17/04/2024,13 MISCELLANEOUS,SERVICES,Royal Meteorological Society,491394,1008.25,-
BEIS,Met Office,08/04/2024,11 SERVICES,SERVICES,SOFTWIRE TECHNOLOGY LIMITED,490932,4200,752 1253 57
BEIS,Met Office,17/04/2024,13 MISCELLANEOUS,SERVICES,SPRINGER CUSTOMER SERVICE CENTER GMBH,25677,4482.82,209719094
BEIS,Met Office,16/04/2024,03 STAFF COSTS T&S,SERVICES,STORAGE FACTORY,491370,185,130 5237 12
BEIS,Met Office,30/04/2024,13 MISCELLANEOUS,SERVICES,THE INSTITUTION OF ENGINEERING AND TECHNOLOGY,483797,48.14,GB240342016
BEIS,Met Office,12/04/2024,11 SERVICES,SERVICES,The Open University,491179,275,650748918
BEIS,Met Office,29/04/2024,11 SERVICES,SERVICES,UK TELEMATICS LIMITED,491798,215.75,GB763051643
BEIS,Met Office,08/04/2024,11 SERVICES,SERVICES,University Of Leicester,489383,-4212,916583894
BEIS,Met Office,08/04/2024,11 SERVICES,SERVICES,University Of Leicester,489264,4212,916583894
BEIS,Met Office,24/04/2024,STOCK,SERVICES,VAISALA LTD,25616,0,336100011
BEIS,Met Office,24/04/2024,STOCK,SERVICES,VAISALA LTD,25616,0,336100011
BEIS,Met Office,10/04/2024,STOCK,SERVICES,VAISALA LTD,25814,0,336100011
BEIS,Met Office,10/04/2024,STOCK,SERVICES,VAISALA LTD,25814,0,336100011
BEIS,Met Office,10/04/2024,STOCK,SERVICES,VAISALA LTD,25814,0,336100011
BEIS,Met Office,10/04/2024,STOCK,SERVICES,VAISALA LTD,25814,0,336100011
BEIS,Met Office,10/04/2024,STOCK,SERVICES,VAISALA LTD,25814,0,336100011
BEIS,Met Office,10/04/2024,STOCK,SERVICES,VAISALA LTD,25814,0,336100011
BEIS,Met Office,10/04/2024,STOCK,SERVICES,VAISALA LTD,25814,0,336100011
BEIS,Met Office,10/04/2024,TRADE CREDITORS,SERVICES,VAISALA LTD,25814,61.63,336100011
BEIS,Met Office,10/04/2024,TRADE CREDITORS,SERVICES,VAISALA LTD,25814,547.76,336100011
BEIS,Met Office,10/04/2024,TRADE CREDITORS,SERVICES,VAISALA LTD,25814,2422.15,336100011
BEIS,Met Office,10/04/2024,TRADE CREDITORS,SERVICES,VAISALA LTD,25814,3081.62,336100011
BEIS,Met Office,10/04/2024,TRADE CREDITORS,SERVICES,VAISALA LTD,25814,4645.54,336100011
BEIS,Met Office,10/04/2024,TRADE CREDITORS,SERVICES,VAISALA LTD,25814,5052.31,336100011
BEIS,Met Office,24/04/2024,TRADE CREDITORS,SERVICES,VAISALA LTD,25616,7845.58,336100011
BEIS,Met Office,24/04/2024,TRADE CREDITORS,SERVICES,VAISALA LTD,25616,8500.51,336100011
BEIS,Met Office,10/04/2024,TRADE CREDITORS,SERVICES,VAISALA LTD,25814,13458.97,336100011
BEIS,Met Office,24/04/2024,11 SERVICES,SERVICES,Vaisala Oyj,25828,-16238.68,FI01244162
BEIS,Met Office,24/04/2024,STOCK,SERVICES,Vaisala Oyj,25653,0,FI01244162
BEIS,Met Office,24/04/2024,11 SERVICES,SERVICES,Vaisala Oyj,25653,1790.37,FI01244162
BEIS,Met Office,24/04/2024,TRADE CREDITORS,SERVICES,Vaisala Oyj,25653,80924.79,FI01244162
BEIS,Met Office,29/04/2024,11 SERVICES,SERVICES,VOLKSWAGEN GROUP LEASING,491784,47,BG745963883
BEIS,Met Office,29/04/2024,11 SERVICES,SERVICES,VOLKSWAGEN GROUP LEASING,491784,87.61,BG745963883
BEIS,Met Office,29/04/2024,11 SERVICES,SERVICES,VOLKSWAGEN GROUP LEASING,491776,131.05,BG745963883
BEIS,Met Office,29/04/2024,11 SERVICES,SERVICES,VOLKSWAGEN GROUP LEASING,491783,134.77,BG745963883
BEIS,Met Office,29/04/2024,11 SERVICES,SERVICES,VOLKSWAGEN GROUP LEASING,491781,160.02,BG745963883
BEIS,Met Office,29/04/2024,11 SERVICES,SERVICES,VOLKSWAGEN GROUP LEASING,491785,195.57,BG745963883
BEIS,Met Office,29/04/2024,11 SERVICES,SERVICES,VOLKSWAGEN GROUP LEASING,491778,199.82,BG745963883
BEIS,Met Office,29/04/2024,11 SERVICES,SERVICES,VOLKSWAGEN GROUP LEASING,491774,213.27,BG745963883
BEIS,Met Office,29/04/2024,11 SERVICES,SERVICES,VOLKSWAGEN GROUP LEASING,491777,230.85,BG745963883
BEIS,Met Office,29/04/2024,11 SERVICES,SERVICES,VOLKSWAGEN GROUP LEASING,491782,248.12,BG745963883
BEIS,Met Office,29/04/2024,11 SERVICES,SERVICES,VOLKSWAGEN GROUP LEASING,491775,260.26,BG745963883
BEIS,Met Office,29/04/2024,11 SERVICES,SERVICES,VOLKSWAGEN GROUP LEASING,491780,260.65,BG745963883
BEIS,Met Office,29/04/2024,11 SERVICES,SERVICES,VOLKSWAGEN GROUP LEASING,491773,289.9,BG745963883
BEIS,Met Office,04/04/2024,11 SERVICES,SERVICES,VOLKSWAGEN GROUP LEASING,490525,290.06,BG745963883
BEIS,Met Office,29/04/2024,11 SERVICES,SERVICES,VOLKSWAGEN GROUP LEASING,491779,290.06,BG745963883
BEIS,Met Office,10/04/2024,07 EQUIPMENT,SERVICES,WILLIAM HACKETT CHAIN PRODUCTS LIMITED,491126,891,217 3054 36
BEIS,Met Office,10/04/2024,07 EQUIPMENT,SERVICES,WILLIAM HACKETT CHAIN PRODUCTS LIMITED,491127,891,217 3054 36
BEIS,Met Office,10/04/2024,07 EQUIPMENT,SERVICES,WILLIAM HACKETT CHAIN PRODUCTS LIMITED,491128,1318.25,217 3054 36
BEIS,Met Office,10/04/2024,07 EQUIPMENT,SERVICES,WILLIAM HACKETT CHAIN PRODUCTS LIMITED,491127,1581.9,217 3054 36
BEIS,Met Office,10/04/2024,07 EQUIPMENT,SERVICES,WILLIAM HACKETT CHAIN PRODUCTS LIMITED,491127,3172.5,217 3054 36
BEIS,Met Office,10/04/2024,07 EQUIPMENT,SERVICES,WILLIAM HACKETT CHAIN PRODUCTS LIMITED,491128,3172.5,217 3054 36
BEIS,Met Office,10/04/2024,07 EQUIPMENT,SERVICES,WILLIAM HACKETT CHAIN PRODUCTS LIMITED,491128,5400,217 3054 36
BEIS,Met Office,10/04/2024,07 EQUIPMENT,SERVICES,WILLIAM HACKETT CHAIN PRODUCTS LIMITED,491129,5400,217 3054 36
BEIS,Met Office,04/04/2024,11 SERVICES,SERVICES,WT CONSULTANCY (SW) LTD,490686,550,223 4662 25
BEIS,Met Office,05/04/2024,11 SERVICES,TECHNOLOGY AND CIO,AKAMAI TECHNOLOGIES LTD,490818,4937.28,745091237
BEIS,Met Office,05/04/2024,11 SERVICES,TECHNOLOGY AND CIO,AKAMAI TECHNOLOGIES LTD,490818,25920.75,745091237
BEIS,Met Office,03/04/2024,11 SERVICES,TECHNOLOGY AND CIO,AMAZON WEB SERVICES EMEA SARL,11457,-4367.13,GB 283644382
BEIS,Met Office,03/04/2024,11 SERVICES,TECHNOLOGY AND CIO,AMAZON WEB SERVICES EMEA SARL,11441,392.36,GB 283644382
BEIS,Met Office,03/04/2024,11 SERVICES,TECHNOLOGY AND CIO,AMAZON WEB SERVICES EMEA SARL,11440,1210.98,GB 283644382
BEIS,Met Office,03/04/2024,11 SERVICES,TECHNOLOGY AND CIO,AMAZON WEB SERVICES EMEA SARL,11432,1803.68,GB 283644382
BEIS,Met Office,03/04/2024,11 SERVICES,TECHNOLOGY AND CIO,AMAZON WEB SERVICES EMEA SARL,11443,284369.35,GB 283644382
BEIS,Met Office,11/04/2024,11 SERVICES,TECHNOLOGY AND CIO,AMAZON WEB SERVICES EMEA SARL,11489,3172510.83,GB 283644382
BEIS,Met Office,05/04/2024,11 SERVICES,TECHNOLOGY AND CIO,ARDOQ UK LIMITED,490850,525,GB 307689963
BEIS,Met Office,17/04/2024,11 SERVICES,TECHNOLOGY AND CIO,BAE SYSTEMS APPLIED INTELLIGENCE LIMITED,491342,1876,GB641407169
BEIS,Met Office,17/04/2024,11 SERVICES,TECHNOLOGY AND CIO,BAE SYSTEMS APPLIED INTELLIGENCE LIMITED,491337,2025,GB641407169
BEIS,Met Office,17/04/2024,11 SERVICES,TECHNOLOGY AND CIO,BAE SYSTEMS APPLIED INTELLIGENCE LIMITED,491336,2415.1,GB641407169
BEIS,Met Office,17/04/2024,11 SERVICES,TECHNOLOGY AND CIO,BAE SYSTEMS APPLIED INTELLIGENCE LIMITED,491343,2814,GB641407169
BEIS,Met Office,17/04/2024,11 SERVICES,TECHNOLOGY AND CIO,BAE SYSTEMS APPLIED INTELLIGENCE LIMITED,491330,3300,GB641407169
BEIS,Met Office,17/04/2024,11 SERVICES,TECHNOLOGY AND CIO,BAE SYSTEMS APPLIED INTELLIGENCE LIMITED,491333,8676.5,GB641407169
BEIS,Met Office,17/04/2024,11 SERVICES,TECHNOLOGY AND CIO,BAE SYSTEMS APPLIED INTELLIGENCE LIMITED,491331,9900,GB641407169
BEIS,Met Office,04/04/2024,11 SERVICES,TECHNOLOGY AND CIO,BAE SYSTEMS APPLIED INTELLIGENCE LIMITED,490675,14025,GB641407169
BEIS,Met Office,17/04/2024,11 SERVICES,TECHNOLOGY AND CIO,BAE SYSTEMS APPLIED INTELLIGENCE LIMITED,491332,15840,GB641407169
BEIS,Met Office,04/04/2024,11 SERVICES,TECHNOLOGY AND CIO,BAE SYSTEMS APPLIED INTELLIGENCE LIMITED,490676,16415,GB641407169
BEIS,Met Office,04/04/2024,11 SERVICES,TECHNOLOGY AND CIO,BAE SYSTEMS APPLIED INTELLIGENCE LIMITED,490677,16766.75,GB641407169
BEIS,Met Office,04/04/2024,11 SERVICES,TECHNOLOGY AND CIO,BAE SYSTEMS APPLIED INTELLIGENCE LIMITED,490674,17822,GB641407169
BEIS,Met Office,17/04/2024,11 SERVICES,TECHNOLOGY AND CIO,BAE SYSTEMS APPLIED INTELLIGENCE LIMITED,491341,19337.5,GB641407169
BEIS,Met Office,17/04/2024,11 SERVICES,TECHNOLOGY AND CIO,BAE SYSTEMS APPLIED INTELLIGENCE LIMITED,491338,19698,GB641407169
BEIS,Met Office,12/04/2024,11 SERVICES,TECHNOLOGY AND CIO,BJSS LIMITED,491152,21250,613295452
BEIS,Met Office,11/04/2024,11 SERVICES,TECHNOLOGY AND CIO,BJSS LIMITED,491148,70435.5,613295452
BEIS,Met Office,19/04/2024,08 SOFTWARE LICENCES,TECHNOLOGY AND CIO,BOXXE,491512,4596.45,734245248
BEIS,Met Office,04/04/2024,08 SOFTWARE LICENCES,TECHNOLOGY AND CIO,BOXXE,490640,8310.8,734245248
BEIS,Met Office,19/04/2024,07 EQUIPMENT,TECHNOLOGY AND CIO,CABINET OFFICE - COF LEAD ACCOUNT,491496,654,-
BEIS,Met Office,19/04/2024,07 EQUIPMENT,TECHNOLOGY AND CIO,CABINET OFFICE - COF LEAD ACCOUNT,491496,750,-
BEIS,Met Office,19/04/2024,07 EQUIPMENT,TECHNOLOGY AND CIO,CABINET OFFICE - COF LEAD ACCOUNT,491496,5811,-
BEIS,Met Office,23/04/2024,11 SERVICES,TECHNOLOGY AND CIO,CLOUDREACH EUROPE LIMITED,491250,3586.23,978187168
BEIS,Met Office,04/04/2024,07 EQUIPMENT,TECHNOLOGY AND CIO,COMPUTACENTER (UK) LTD,490362,-4101.2,490334648
BEIS,Met Office,24/04/2024,07 EQUIPMENT,TECHNOLOGY AND CIO,COMPUTACENTER (UK) LTD,491676,-45.25,490334648
BEIS,Met Office,24/04/2024,07 EQUIPMENT,TECHNOLOGY AND CIO,COMPUTACENTER (UK) LTD,491674,45.25,490334648
BEIS,Met Office,04/04/2024,07 EQUIPMENT,TECHNOLOGY AND CIO,COMPUTACENTER (UK) LTD,490720,63.95,490334648
BEIS,Met Office,04/04/2024,10 EQUIPMENT MAINTENANCE,TECHNOLOGY AND CIO,COMPUTACENTER (UK) LTD,490722,124.19,490334648
BEIS,Met Office,04/04/2024,07 EQUIPMENT,TECHNOLOGY AND CIO,COMPUTACENTER (UK) LTD,490726,298.71,490334648
BEIS,Met Office,04/04/2024,07 EQUIPMENT,TECHNOLOGY AND CIO,COMPUTACENTER (UK) LTD,490727,298.71,490334648
BEIS,Met Office,04/04/2024,10 EQUIPMENT MAINTENANCE,TECHNOLOGY AND CIO,COMPUTACENTER (UK) LTD,490722,529.88,490334648
BEIS,Met Office,24/04/2024,07 EQUIPMENT,TECHNOLOGY AND CIO,COMPUTACENTER (UK) LTD,491674,597.5,490334648
BEIS,Met Office,24/04/2024,07 EQUIPMENT,TECHNOLOGY AND CIO,COMPUTACENTER (UK) LTD,491676,597.5,490334648
BEIS,Met Office,04/04/2024,10 EQUIPMENT MAINTENANCE,TECHNOLOGY AND CIO,COMPUTACENTER (UK) LTD,490722,684.78,490334648
BEIS,Met Office,11/04/2024,07 EQUIPMENT,TECHNOLOGY AND CIO,COMPUTACENTER (UK) LTD,491220,703.6,490334648
BEIS,Met Office,24/04/2024,07 EQUIPMENT,TECHNOLOGY AND CIO,COMPUTACENTER (UK) LTD,491674,791.25,490334648
BEIS,Met Office,04/04/2024,10 EQUIPMENT MAINTENANCE,TECHNOLOGY AND CIO,COMPUTACENTER (UK) LTD,490722,1012.42,490334648
BEIS,Met Office,04/04/2024,10 EQUIPMENT MAINTENANCE,TECHNOLOGY AND CIO,COMPUTACENTER (UK) LTD,490722,1234.8,490334648
BEIS,Met Office,24/04/2024,07 EQUIPMENT,TECHNOLOGY AND CIO,COMPUTACENTER (UK) LTD,491676,1318.75,490334648
BEIS,Met Office,12/04/2024,07 EQUIPMENT,TECHNOLOGY AND CIO,COMPUTACENTER (UK) LTD,491242,1412.32,490334648
BEIS,Met Office,04/04/2024,10 EQUIPMENT MAINTENANCE,TECHNOLOGY AND CIO,COMPUTACENTER (UK) LTD,490722,1581.32,490334648
BEIS,Met Office,05/04/2024,07 EQUIPMENT,TECHNOLOGY AND CIO,COMPUTACENTER (UK) LTD,490809,2512.22,490334648
BEIS,Met Office,04/04/2024,07 EQUIPMENT,TECHNOLOGY AND CIO,COMPUTACENTER (UK) LTD,490721,3333.52,490334648
BEIS,Met Office,04/04/2024,07 EQUIPMENT,TECHNOLOGY AND CIO,COMPUTACENTER (UK) LTD,482308,4101.2,490334648
BEIS,Met Office,24/04/2024,10 EQUIPMENT MAINTENANCE,TECHNOLOGY AND CIO,COMPUTACENTER (UK) LTD,491684,4730.81,490334648
BEIS,Met Office,24/04/2024,10 EQUIPMENT MAINTENANCE,TECHNOLOGY AND CIO,COMPUTACENTER (UK) LTD,491683,43184.88,490334648
BEIS,Met Office,05/04/2024,INFORMATION TECHNOLOGY,TECHNOLOGY AND CIO,COMPUTACENTER (UK) LTD,490807,53281.69,490334648
BEIS,Met Office,19/04/2024,10 EQUIPMENT MAINTENANCE,TECHNOLOGY AND CIO,COMPUTACENTER (UK) LTD,491456,352163.09,490334648
BEIS,Met Office,19/04/2024,10 EQUIPMENT MAINTENANCE,TECHNOLOGY AND CIO,COMPUTACENTER (UK) LTD,491457,527030.68,490334648
BEIS,Met Office,04/04/2024,08 SOFTWARE LICENCES,TECHNOLOGY AND CIO,Digital.ai Software (UK) Ltd,490775,4422.59,228794369
BEIS,Met Office,05/04/2024,11 SERVICES,TECHNOLOGY AND CIO,EXPONENTIAL-E,490836,3354.58,GB798572653
BEIS,Met Office,10/04/2024,11 SERVICES,TECHNOLOGY AND CIO,GARTNER UK LTD,490779,22700,635878884
BEIS,Met Office,04/04/2024,08 SOFTWARE LICENCES,TECHNOLOGY AND CIO,GOOGLE IRELAND LTD,490788,37.87,6388047V
BEIS,Met Office,04/04/2024,10 EQUIPMENT MAINTENANCE,TECHNOLOGY AND CIO,Hewlett Packard Ltd,490711,-65721.8,314149679
BEIS,Met Office,04/04/2024,10 EQUIPMENT MAINTENANCE,TECHNOLOGY AND CIO,Hewlett Packard Ltd,490709,65721.8,314149679
BEIS,Met Office,04/04/2024,10 EQUIPMENT MAINTENANCE,TECHNOLOGY AND CIO,Hewlett Packard Ltd,490710,394331,314149679
BEIS,Met Office,09/04/2024,10 EQUIPMENT MAINTENANCE,TECHNOLOGY AND CIO,Hewlett Packard Ltd,490921,403205.82,314149679
BEIS,Met Office,09/04/2024,10 EQUIPMENT MAINTENANCE,TECHNOLOGY AND CIO,Hewlett Packard Ltd,490921,1153718.28,314149679
BEIS,Met Office,04/04/2024,08 SOFTWARE LICENCES,TECHNOLOGY AND CIO,HUT 6 SECURITY LIMITED,490749,31772.8,277 2052 03
BEIS,Met Office,04/04/2024,08 SOFTWARE LICENCES,TECHNOLOGY AND CIO,Ibm United Kingdom Ltd,490695,7395.5,107328000
BEIS,Met Office,17/04/2024,08 SOFTWARE LICENCES,TECHNOLOGY AND CIO,Ibm United Kingdom Ltd,491406,11703,107328000
BEIS,Met Office,19/04/2024,11 SERVICES,TECHNOLOGY AND CIO,INFORMATION SECURITY FORUM LIMITED,491388,29000,GB 606 0386 62
BEIS,Met Office,05/04/2024,11 SERVICES,TECHNOLOGY AND CIO,LAFOSSE ASSOCIATES,490761,10920,GB 360026537
BEIS,Met Office,05/04/2024,11 SERVICES,TECHNOLOGY AND CIO,LAFOSSE ASSOCIATES,490758,13125.84,GB 360026537
BEIS,Met Office,10/04/2024,11 SERVICES,TECHNOLOGY AND CIO,LAFOSSE ASSOCIATES,491043,21840,GB 360026537
BEIS,Met Office,05/04/2024,11 SERVICES,TECHNOLOGY AND CIO,LAFOSSE ASSOCIATES,490760,22910.16,GB 360026537
BEIS,Met Office,04/04/2024,08 SOFTWARE LICENCES,TECHNOLOGY AND CIO,LNRS DATA SERVICES LTD,489767,17988.75,730859520
BEIS,Met Office,05/04/2024,08 SOFTWARE LICENCES,TECHNOLOGY AND CIO,LOOP1 UK LIMITED,490424,9792.75,02631536
BEIS,Met Office,17/04/2024,11 SERVICES,TECHNOLOGY AND CIO,LRQA LTD,491392,3060,821176647
BEIS,Met Office,05/04/2024,11 SERVICES,TECHNOLOGY AND CIO,NEXER DIGITAL LTD,490849,300,908 8541 00
BEIS,Met Office,17/04/2024,10 EQUIPMENT MAINTENANCE,TECHNOLOGY AND CIO,ORACLE CORPORATION UK LTD,491387,7897.91,391313073
BEIS,Met Office,09/04/2024,10 EQUIPMENT MAINTENANCE,TECHNOLOGY AND CIO,ORACLE CORPORATION UK LTD,491084,16759.37,391313073
BEIS,Met Office,17/04/2024,10 EQUIPMENT MAINTENANCE,TECHNOLOGY AND CIO,ORACLE CORPORATION UK LTD,491399,16759.37,391313073
BEIS,Met Office,30/04/2024,10 EQUIPMENT MAINTENANCE,TECHNOLOGY AND CIO,ORACLE CORPORATION UK LTD,491813,20570.43,391313073
BEIS,Met Office,22/04/2024,10 EQUIPMENT MAINTENANCE,TECHNOLOGY AND CIO,ORACLE CORPORATION UK LTD,491588,20981.83,391313073
BEIS,Met Office,30/04/2024,10 EQUIPMENT MAINTENANCE,TECHNOLOGY AND CIO,ORACLE CORPORATION UK LTD,491814,29687.58,391313073
BEIS,Met Office,24/04/2024,10 EQUIPMENT MAINTENANCE,TECHNOLOGY AND CIO,ORACLE CORPORATION UK LTD,491653,30138.26,391313073
BEIS,Met Office,09/04/2024,10 EQUIPMENT MAINTENANCE,TECHNOLOGY AND CIO,ORACLE CORPORATION UK LTD,491085,55010.88,391313073
BEIS,Met Office,17/04/2024,10 EQUIPMENT MAINTENANCE,TECHNOLOGY AND CIO,ORACLE CORPORATION UK LTD,491400,58229.86,391313073
BEIS,Met Office,24/04/2024,11 SERVICES,TECHNOLOGY AND CIO,PRICEWATERHOUSE COOPERS LLP,491654,12000,243823957
BEIS,Met Office,17/04/2024,11 SERVICES,TECHNOLOGY AND CIO,QA LTD,490521,2700,864455303
BEIS,Met Office,17/04/2024,11 SERVICES,TECHNOLOGY AND CIO,QA LTD,491078,4420,864455303
BEIS,Met Office,15/04/2024,11 SERVICES,TECHNOLOGY AND CIO,QA LTD,491081,4590,864455303
BEIS,Met Office,11/04/2024,11 SERVICES,TECHNOLOGY AND CIO,QA LTD,491173,4800,864455303
BEIS,Met Office,17/04/2024,11 SERVICES,TECHNOLOGY AND CIO,QA LTD,491377,4800,864455303
BEIS,Met Office,11/04/2024,11 SERVICES,TECHNOLOGY AND CIO,QA LTD,491079,5100,864455303
BEIS,Met Office,11/04/2024,11 SERVICES,TECHNOLOGY AND CIO,QA LTD,491083,5700,864455303
BEIS,Met Office,17/04/2024,11 SERVICES,TECHNOLOGY AND CIO,QA LTD,491376,5700,864455303
BEIS,Met Office,30/04/2024,11 SERVICES,TECHNOLOGY AND CIO,QA LTD,491650,5700,864455303
BEIS,Met Office,17/04/2024,11 SERVICES,TECHNOLOGY AND CIO,QA LTD,491077,5759.1,864455303
BEIS,Met Office,16/04/2024,11 SERVICES,TECHNOLOGY AND CIO,QA LTD,491080,6000,864455303
BEIS,Met Office,11/04/2024,11 SERVICES,TECHNOLOGY AND CIO,QA LTD,491082,6000,864455303
BEIS,Met Office,19/04/2024,11 SERVICES,TECHNOLOGY AND CIO,QA LTD,491518,6000,864455303
BEIS,Met Office,18/04/2024,11 SERVICES,TECHNOLOGY AND CIO,QA LTD,491389,10950,864455303
BEIS,Met Office,15/04/2024,11 SERVICES,TECHNOLOGY AND CIO,QA LTD,491172,12000,864455303
BEIS,Met Office,05/04/2024,11 SERVICES,TECHNOLOGY AND CIO,REDROCK CONSULTING LIMITED,490851,16000,862 2477 15
BEIS,Met Office,29/04/2024,13 MISCELLANEOUS,TECHNOLOGY AND CIO,RITTAL LTD,491744,8,308285849
BEIS,Met Office,29/04/2024,07 EQUIPMENT,TECHNOLOGY AND CIO,RITTAL LTD,491744,100.14,308285849
BEIS,Met Office,11/04/2024,11 SERVICES,TECHNOLOGY AND CIO,ROWE IT LTD,490922,30737.5,924964394
BEIS,Met Office,04/04/2024,08 SOFTWARE LICENCES,TECHNOLOGY AND CIO,SPECIALIST COMPUTER CENTRES,490654,592.92,313651680
BEIS,Met Office,04/04/2024,11 SERVICES,TECHNOLOGY AND CIO,SPECIALIST COMPUTER CENTRES,490764,58034,313651680
BEIS,Met Office,04/04/2024,08 SOFTWARE LICENCES,TECHNOLOGY AND CIO,SPECIALIST COMPUTER CENTRES,490765,74830.32,313651680
BEIS,Met Office,05/04/2024,11 SERVICES,TECHNOLOGY AND CIO,SYNTHESYS SYSTEMS ENGINEERS LTD,490943,1857.6,499309492
BEIS,Met Office,30/04/2024,11 SERVICES,TECHNOLOGY AND CIO,TRIAD GROUP PLC,491816,1704.69,GB492999762
BEIS,Met Office,05/04/2024,11 SERVICES,TECHNOLOGY AND CIO,TRIAD GROUP PLC,490755,158810,GB492999762
BEIS,Met Office,30/04/2024,08 SOFTWARE LICENCES,TECHNOLOGY AND CIO,TRUSTMARQUE SOLUTIONS LTD,491799,418517.44,GB434530809
BEIS,Met Office,04/04/2024,11 SERVICES,TECHNOLOGY AND CIO,WIREFAST LTD,490685,106.59,749536001
BEIS,Met Office,04/04/2024,11 SERVICES,TECHNOLOGY AND CIO,WIREFAST LTD,490687,1253.93,749536001
BEIS,Met Office,04/04/2024,11 SERVICES,TECHNOLOGY AND CIO,WIREFAST LTD,490688,1544.53,749536001
BEIS,Met Office,04/04/2024,11 SERVICES,TECHNOLOGY AND CIO,WT CONSULTANCY (SW) LTD,490684,1400,223 4662 25
